{"text_format":"1","workbook":"xlsx","n_sheets":5,"sheets":["Contents","Cover","1. F-Factor summary","2. Individual fire start info","3. Systems and Audit"],"not_rendered":{"charts":0,"images":2,"macros":1,"external_links":2,"defined_names":97,"comments":0,"pivot_tables":0},"unopened":[],"bounds":{"document_bytes":16777216,"sheet_cells":100000,"rows_first":2000,"rows_last":500,"rows_between":2000,"halvings":0,"cell_chars":16384,"cell_head_chars":4096},"cells_cut":0,"cells_raw":0,"read":"whole","date_system":"1900"}

{"sheet":"Contents","index":0,"n_rows":19,"n_cols":6,"rows_kept":19,"cut":false,"hidden":false,"merged":[[8,2,9,3],[2,1,2,10],[4,1,4,10]]}
[" "]
[]
[null,"Electricity Distribution Network Service Provider\nF-factor Reporting Template"]
[]
[null,"Table of contents"]
[]
[]
[null,null,"Cover sheet",null,null,"2. Fire start report"]
[]
[]
[]
[null,null,"1. F-factor summary",null,null,"3. Systems and Audit"]
[]
[]
[]
[]
[]
[]
[null,null,{"$f":"\"NOTE: This spreadsheet includes IRU targets up to and including FY\"&'1. F-Factor summary'!J10","v":"NOTE: This spreadsheet includes IRU targets up to and including FY2023/24"}]

{"sheet":"Cover","index":1,"n_rows":49,"n_cols":7,"rows_kept":49,"cut":false,"hidden":false,"merged":[[10,1,11,8],[13,1,13,8],[48,2,48,6],[42,2,42,3],[42,4,42,7],[46,2,46,6],[47,2,47,6],[38,2,38,3],[38,4,38,7],[41,2,41,3],[41,4,41,7],[37,2,37,3],[37,4,37,7],[32,3,32,8],[30,3,30,8],[15,1,15,8],[26,3,26,8],[28,3,28,8],[26,1,26,2],[31,3,31,5],[14,1,14,8],[16,1,16,8],[17,1,17,8],[21,1,21,8],[19,1,19,8]]}
[]
[]
[]
[]
[]
[]
[]
[null,"Distribution Network Service Provider"]
[null,"Fire start report"]
[]
[null,"This template is to be used by a DNSP to provide a fire start report to the AER in accordance with section 5 of the F-factor Order in Council.  "]
[]
[]
[null,"Colour coding of input sheets:"]
[null,"Dark blue = AER headings"]
[null,"Grey = AER instructions"]
[null,"Yellow = Input cells"]
[null,"Light orange = Automatically-generated cells"]
[]
[null,"Leave coloured cells blank if no information exists - PLEASE DO NOT ENTER TEXT unless specifically requested to do so."]
[null,"The cells and structure of the spreadsheet is locked to prevent inadvertent interference with the automated settings."]
[null,"All dollar amounts are to be unrounded, and in nominal terms."]
[]
[]
[]
[]
[null,"DNSP:",null,"AusNet Services"]
[]
[null,"DNSP - trading name:"]
[]
[null,"DNSP - Australian business number: ",null,"91 064 651 118"]
[]
[null,"Reporting year:",null,"2022/23"]
[]
[]
[]
[]
[null,"Business address","Address",null,"Level 31, 2 Southbank Boulevard"]
[null,null,"Suburb",null,"Southbank"]
[null,null,null,"State","Victoria","Postcode",3006]
[]
[null,"Postal address","Address",null,"Locked Bag 14051 MCMC"]
[null,null,"Suburb",null,"Melbourne"]
[null,null,null,"State","Victoria","Postcode"]
[]
[]
[null,"Contact name/s"]
[null,"Contact phone/s"]
[null,"Contact email address/s"]

{"sheet":"1. F-Factor summary","index":2,"n_rows":14,"n_cols":15,"rows_kept":14,"cut":false,"hidden":false,"merged":[[5,1,5,2],[3,6,3,8],[4,6,4,8],[5,6,5,8],[11,2,11,3],[12,2,12,3],[13,2,13,3],[6,2,6,3],[7,2,7,3],[8,2,8,3],[9,2,9,3],[10,2,10,3]]}
[null,{"$f":"IF(Cover!D27=\"\",\"[DNSP Name]\", Cover!D27)","v":"AusNet Services"},"IRU target:",{"$f":"IF(SUM(K2:O2)=0,\"\",SUM(K2:O2))","v":149.69999999999999},null,null,null,null,null,null,"AusNet Services","CitiPower","Jemena","Powercor","United Energy"]
[null,"F-factor data reporting","IRU amount:",{"$f":"IF(SUM('2. Individual fire start info'!S38:S1949)=0,\"\",SUM('2. Individual fire start info'!S38:S1949))","v":128.31280000000012},null,null,null,null,null,"current",{"$f":"IF(OR($B3=\"[Year]\",$B1=\"[DNSP Name]\",$B1<>K1),\"\",LOOKUP($B3,$J3:$J101,K3:K101))","v":149.69999999999999},{"$f":"IF(OR($B3=\"[Year]\",$B1=\"[DNSP Name]\",$B1<>L1),\"\",LOOKUP($B3,$J3:$J101,L3:L101))","v":""},{"$f":"IF(OR($B3=\"[Year]\",$B1=\"[DNSP Name]\",$B1<>M1),\"\",LOOKUP($B3,$J3:$J101,M3:M101))","v":""},{"$f":"IF(OR($B3=\"[Year]\",$B1=\"[DNSP Name]\",$B1<>N1),\"\",LOOKUP($B3,$J3:$J101,N3:N101))","v":""},{"$f":"IF(OR($B3=\"[Year]\",$B1=\"[DNSP Name]\",$B1<>O1),\"\",LOOKUP($B3,$J3:$J101,O3:O101))","v":""}]
[null,{"$f":"IF(Cover!D33=\"\",\"[Year]\",Cover!D33)","v":"2022/23"},"Revenue adjustment:",{"$f":"IF(OR(D1=\"\",D2=\"\"),\"\",15000*(D1-D2))","v":320807.99999999796},null,null,null,null,null,"2016/17",247.7,3.4,9.6999999999999993,468,22.3]
[null,null,null,null,null,null,null,null,null,"2017/18",247.7,3.4,9.6999999999999993,468,22.3]
[null,"Table 2: Summary of total fire starts by F factor Order definition",null,null,null,null,null,null,null,"2018/19",247.7,3.4,9.6999999999999993,468,22.3]
[null,"This is a summary of data in worksheet \"2. Fire Start Report\"",null,null,null,null,null,null,null,"2019/20",221.1,3.4,9.6999999999999993,412.8,22.3]
[null,"Kind of Fire Start by definition of fire start under clause 5 of F-factor Order","Total fires by cause",null,null,null,null,null,null,"2020/21",177.5,1.3,4.2,277.60000000000002,18.7]
[null,"Started in or originated from a distribution system",{"$f":"COUNTIF('2. Individual fire start info'!$N$38:$N$1949,'1. F-Factor summary'!$B8)","v":47},null,null,null,null,null,null,"2021/22",164.3,1.9,3.7,235.2,19]
[null,"Started by any tree, or part of a tree, falling upon or coming into contact with a distribution system",{"$f":"COUNTIF('2. Individual fire start info'!$N$38:$N$1949,'1. F-Factor summary'!$B9)","v":16},null,null,null,null,null,null,"2022/23",149.69999999999999,1.5,2.7,188,13.9]
[null,"Started by any person, bird, reptile or other animal coming into contact with a distribution system",{"$f":"COUNTIF('2. Individual fire start info'!$N$38:$N$1949,'1. F-Factor summary'!$B10)","v":15},null,null,null,null,null,null,"2023/24",134.1,1.8,2.8,187.8,14.4]
[null,"Started by lightning striking a distribution system or a part of a distribution system ",{"$f":"COUNTIF('2. Individual fire start info'!$N$38:$N$1949,'1. F-Factor summary'!$B11)","v":5}]
[null,"Started by any other thing forming part of or coming into contact with a distribution system",{"$f":"COUNTIF('2. Individual fire start info'!$N$38:$N$1949,'1. F-Factor summary'!$B12)","v":6}]
[null,"Otherwise started by a distribution system",{"$f":"COUNTIF('2. Individual fire start info'!$N$38:$N$1949,'1. F-Factor summary'!$B13)","v":60}]
[null,"Total",{"$f":"SUM(C8:C13)","v":149}]

{"sheet":"2. Individual fire start info","index":3,"n_rows":187,"n_cols":25,"rows_kept":187,"cut":false,"hidden":false,"merged":[[25,1,25,18],[27,1,27,20],[26,1,26,21],[35,19,35,21],[33,1,33,4],[35,2,35,10],[28,1,28,18],[29,1,29,18],[35,11,35,13],[35,14,35,17],[13,1,13,11],[22,1,22,21],[24,1,24,21],[14,1,14,20],[15,1,15,18],[16,1,16,18],[18,1,18,18],[21,1,21,18],[19,1,19,18],[23,1,23,18],[20,1,20,18],[17,1,17,18],[3,22,3,24],[4,22,4,24],[5,22,5,24],[7,1,7,21],[11,1,11,2],[9,1,9,21]]}
[null,{"$f":"IF(Cover!D27=\"\",\"[DNSP Name]\", Cover!D27)","v":"AusNet Services"}]
[null,"F-factor data reporting"]
[null,{"$f":"IF(Cover!D33=\"\",\"[Year]\",Cover!D33)","v":"2022/23"}]
[]
[]
[null,"Instructions:"]
[]
[null,{"$f":"\"Enter into this worksheet fire start data, from any IT system, which have been recorded by \"&IF(Cover!D27=\"\",\"[DNSP Name]\", Cover!D27)&\". Note that fire starts must be in accordance with the definition of a fire start in the Order In Council.\"","v":"Enter into this worksheet fire start data, from any IT system, which have been recorded by AusNet Services. Note that fire starts must be in accordance with the definition of a fire start in the Order In Council."}]
[]
[null,"\"Fire\" should be interpreted using its common meaning and can be defined as a process in which substances combine chemically with oxygen from the air and typically give out bright light, heat and smoke. A fire should be recorded where there is evidence of smoking, charring, scorching, burning or any other evidence that a fire had occurred.  "]
[]
[null,{"$f":"IF(Cover!D27=\"\",\"[DNSP Name] must provide:\", CONCATENATE(Cover!D27,\" must provide:\"))","v":"AusNet Services must provide:"}]
[]
[null,"Table 3 - Individual Fire Starts"]
[null,"   (1) Date - dd/mm/yyyy"]
[null,"   (2) Time - if known, the 24-hour time of the fire start hh:mm"]
[null,"   (3) Latitude and longitude of the fire start as decimal coordinates"]
[null,"   (4) Address of the property on which the incident occurred or closest to the incident"]
[null,"   (5) Asset number for the asset nearest the fire start"]
[null,{"$f":"\"   (6) Feeder ID for the polyphase overhead line or underground cable nearest the fire start in the \"&B1&\" network\"","v":"   (6) Feeder ID for the polyphase overhead line or underground cable nearest the fire start in the AusNet Services network"}]
[null,"   (7) Voltage on the line in which the fire start occurred (note: this may not be the nearest polyphase overhead line)"]
[null,"   (8) Network categorisation - CBD, Urban, Rural Long or Rural Short"]
[null,"   (9) Asset type of primary asset causing fire in accordance with OSIRIS asset categories"]
[null,"   (10) Where the asset involved in the fire is a transformer or an overhead or underground line, provide the phase, or phases, of the line or transformer"]
[null,"   (11) Kind of fire start in accordance with categories specified in Clause 5 of the F-factor Order-In-Council [Note: For the 2022-2023 period, the AER and ESV will accept either the initiating event or the cause.]"]
[null,"   (12) Identify the location of the fire start in accordance with the categories specified in Clause 11(b) of the F-factor Order-In-Council"]
[null,"   (13) Provide the BOM fire danger rating applicable at the time of the fire start (data is available on the EM-COP website) [Note: The fire danger rating applies from the time it was issued; ratings do no apply retrospectively. The rating from the previous day carries into the current day until the rating is changed. If no fire danger rating is issued for the day, a rating of \"No forecast\" applies for the whole day.]"]
[null,{"$f":"\"   (14) \"&IF(Cover!D27=\"\",\"[DNSP Name]\", Cover!D27)&\"'s record number for the incident\"","v":"   (14) AusNet Services's record number for the incident"}]
[null,"   (15) ESV's OSIRIS reference number for the incident"]
[null,"   (16) Free text description of the fault containing relevant comments from field reports "]
[]
[]
[]
[null,"Table 2: Individual Fire Starts"]
[]
[null,"Number","Fire starts",null,null,null,null,null,null,null,null,"Fire Type",null,null,"Risk Factors",null,null,null,"IRU \namount","Additional information"]
[null,null,"Date 1","Time 2","Latitude 3","Longitude 3","Address of incident 4","ID of \nnearest \nasset 5","ID of nearest \npolyphase \nline 6","Voltage of line in which \nfire start \noccurred 7","Network categorisation 8","Type of primary asset \ninvolved in fire start 9","Phase(s) of \nline or \ntransformer 10","Kind of fire start as per Clause 5\nof F-factor Order-In-Council 11","Location \narea 12","Location\nmultiplier","Fire \ndanger \nrating 13","Danger multiplier","Product of multipliers","DNSP record number 14","OSIRIS \n(ESV) reference \nnumber 15","Fault \ndescription 16"]
[{"$f":"COUNTA(C38:O38,Q38,T38:V38)","v":17},1,"2022-07-05T07:39:46","07:39",-38.510845006569497,145.357606026799,"6 Malcliff Rd, Newhaven VIC 3925, Australia",2810835,"WGI32","Low voltage AC (<1kV)","RURAL SHORT"," - connection box","three phase","Started in or originated from a distribution system","LBRA only",{"$f":"IF(O38=\"\",\"\",IF(O38=\"LBRA only\",0.2,IF(O38=\"HBRA only\",1,IF(O38=\"within electric line construction area\",19.8,IF(O38=\"within area delineated on plan LEGL./16-354\",4.6,\"\")))))","v":0.2},"No forecast",{"$f":"IF(Q38=\"\",\"\",IF(C38>=DATE(2022,9,1),IF(Q38=\"No forecast\",0.05,IF(Q38=\"Moderate\",0.334,IF(Q38=\"High\",0.678,IF(Q38=\"Extreme\",2.272,4.754)))),0.05))","v":0.05},{"$f":"IF(OR(P38=\"\",R38=\"\"),\"\",IF(AND(O38=\"within electric line construction area\",Q38=\"No forecast\"),1,P38*R38))","v":1.0000000000000002E-2},"E0087701","20220804SPN_01"," A FOLCB on a pole failed causing it to catch fire and melt as well as damage 3 services.",null,null,"Overhead conductors"]
[17,2,"2022-07-05T10:01:55","10:01",-37.978997992330697,145.583882992947,"365 Gembrook-Tonimbuk Rd, Gembrook VIC 3783, Australia",416295,"OFR23","22kV AC","RURAL LONG"," - fuse (EDO fuse)","single phase","Started by any person, bird, reptile or other animal coming into contact with a distribution system","HBRA only",1,"No forecast",{"$f":"IF(Q39=\"\",\"\",IF(C39>=DATE(2022,9,1),IF(Q39=\"No forecast\",0.05,IF(Q39=\"Moderate\",0.334,IF(Q39=\"High\",0.678,IF(Q39=\"Extreme\",2.272,4.754)))),0.05))","v":0.05},0.05,"E0088850","20220804SPN_04","Crew attended site and found a candled fuse that failed to eject with a dead possum on the ground.",null,null," - overhead conductor (bare; aluminium core steel reinforced)"]
[17,3,"2022-07-10T19:06:20","19:06",-37.823437993644603,145.25663201612599,"9 Rotherwood Ave, Ringwood East VIC 3135, Australia",1216672,"RWT22","Low voltage AC (<1kV)","URBAN"," - switch (disconnector/isolator)","three phase","Started in or originated from a distribution system","LBRA only",0.2,"No forecast",0.05,1.0000000000000002E-2,"E0088851","20220804SPN_05","A transformer Krone box caught fire and melted.",null,null," - overhead conductor (bare; all aluminium conductor)"]
[17,4,"2022-07-22T18:45:41","18:45",-37.766393999999998,145.37510800000001,"8A Fortune Ave, Mount Evelyn VIC 3796, Australia",1001519,"LDL23","Low voltage AC (<1kV)","RURAL LONG"," - connector / termination","three phase","Started in or originated from a distribution system","within area delineated on plan LEGL./16-354",4.5999999999999996,"No forecast",0.05,0.22999999999999998,"E0088107","20220726SPN_02","At 1845 22/07/22 INCD-67721-a was auto generated on LDL23 at \"Fortune Bramwell\" S/S LIS #1001519 due to a customer call. The 3ph S/S feeds 77 customers. \n\nOn arrival the fault crew Rob Groiss 0488 257 551 stated there were multiple meter boxes with damage & a large number of customers claiming appliance damage.\n\nAt 27 Fortune Av, Lilydale a person allegedly received an electric shock & burns to his hands whilst attempting to extinguish a fire in the meter box. The person appeared fine & was taken to hospital via ambulance as a precaution.  \n\nThe substation LV TX ISOL’s were opened at 1925 & after investigation the crew found the N IPC had failed between the LV TX leads & the O/H. This has now been fixed using Live LV methods. The IPC has been taken to Lilydale for quarantine.\n\n",null,null," - overhead conductor (bare; copper)"]
[17,5,"2022-07-23T15:34:40","15:34",-37.857220017902002,147.64531902060801,"390 Paynesville Rd, Bairnsdale VIC 3875, Australia",1610123,"BDL43","22kV AC","URBAN"," - fuse (boric acid)","single phase","Started by any person, bird, reptile or other animal coming into contact with a distribution system","within area delineated on plan LEGL./16-354",4.5999999999999996,"No forecast",0.05,0.22999999999999998,"E0088430","20220804SPN_02","Crew arrived and found a candled BA fuse that failed to eject. No ground fire. A birds nest on top of the transformer caused the initial fault.",null,null," - overhead conductor (bare; steel)"]
[17,6,"2022-07-29T06:06:45","06:06",-37.131393749266692,146.27040178962599,"98 Davies Rd, Merrijig (West) VIC 3723, Australia",2601656244,"MSD1","12.7kV AC (SWER)","RURAL LONG"," - fuse (boric acid)","single wire earth return (SWER)","Otherwise started by a distribution system","HBRA only",1,"No forecast",0.05,0.05,"E0088433","20220804SPN_03","Crew attended site and found a candled fuse that failed to eject",null,null," - overhead conductor (ABC)"]
[17,7,"2022-07-29T22:47:05","22:47",-37.049516994794303,145.862770997882,"3221 Maintongoon Rd, Bonnie Doon VIC 3720, Australia",3912876,"MSD2","22kV AC","RURAL LONG"," - fuse (boric acid)","single phase","Otherwise started by a distribution system","within area delineated on plan LEGL./16-354",4.5999999999999996,"No forecast",0.05,0.22999999999999998,"E0088260","20220803SPN_02","Crew attended and found a candled BA fuse that failed to eject.",null,null," - overhead conductor (covered uninsulated)"]
[17,8,"2022-08-01T21:01:00","21:01",-37.764617007615499,145.23383297932801,"21 Hall Rd, Warrandyte South VIC 3134, Australia",1202957,"RWN34","22kV AC","RURAL SHORT"," - connector / termination","three phase","Otherwise started by a distribution system","within area delineated on plan LEGL./16-354",4.5999999999999996,"No forecast",0.05,0.22999999999999998,"E0088287","20220803SPN_03","There was a report of pole fire and expolsion before power went out. Pole Fire @ LIS : 1202957 sw: RW026\nCable Head has failed and blown @ LIS : 1202957. LA's damaged as well as Leads. ",null,null," - overhead conductor (insulated)"]
[17,9,"2022-08-02T20:58:24","20:58",-37.648613008954896,145.49711001429102,"7 Chum Creek Rd, Healesville VIC 3777, Australia",1408656,"LDL23","22kV AC","RURAL LONG"," - fuse (boric acid)","three phase","Otherwise started by a distribution system","within area delineated on plan LEGL./16-354",4.5999999999999996,"No forecast",0.05,0.22999999999999998,"E0088413","20220803SPN_04","Crew attended site and found 1 blown BA fuse and one had candled and failed to eject.",null,null,"Service lines"]
[17,10,"2022-08-03T04:09:09","04:09",-37.774650999791099,145.644543030514,"2790 Warburton Highway Old Warburton Rd, Wesburn VIC 3799, Australia",1403988,"WYK23","22kV AC","RURAL SHORT"," - fuse (boric acid)","three phase","Started by any tree, or part of a tree, falling upon or coming into contact with a distribution system","within area delineated on plan LEGL./16-354",4.5999999999999996,"No forecast",0.05,0.22999999999999998,"E0088797","20220816SPN_01","Crew arrived on site and found a candled BA fuse. They found that a tree branch was across the 22KV open wire and caused the fault. No ground fire.",null,null," - overhead service conductor (residential)"]
[17,11,"2022-08-04T08:13:46","08:13",-37.096313018169695,145.138853018091,"Upper Goulburn Rd, Tallarook VIC 3659, Australia",4705656,"SMR14","22kV AC","RURAL LONG"," - fuse (boric acid)","three phase","Started by lightning striking a distribution system or a part of a distribution system ","within electric line construction area",19.8,"No forecast",0.05,1,"E0088800","20220816SPN_02","Crew attended and found 1 candled BA fuse and 1 fuse hung up. The crew suspect that the fault was caused by lightening.",null,null," - overhead service conductor (commercial / industrial)"]
[17,12,"2022-08-08T18:32:33","18:32",-38.070964207057195,147.157658704277,"218 Hughes Rd, Cobains VIC 3851, Australia",2601727532,"SLE32","Low voltage AC (<1kV)","RURAL SHORT"," - connection box","three phase","Started in or originated from a distribution system","within area delineated on plan LEGL./16-354",4.5999999999999996,"No forecast",0.05,0.22999999999999998,"E0088481","20220809SPN_01","A FOLCB failed and caught fire causing a 1 meter ground fire",null,null," - overhead service conductor (subdivision / construction)"]
[17,13,"2022-08-23T06:04:35","06:04",-38.509029979587801,145.90344197688401,"30 Hillgroves Rd, Leongatha South VIC 3953, Australia",2010432,"LGA23","22kV AC","RURAL LONG"," - fuse (boric acid)","single phase","Started in or originated from a distribution system","HBRA only",1,"No forecast",0.05,0.05,"E0088954","20220823SPN_01","Crew arrived on site and found a candled BA fuse.",null,null," - overhead service conductor (other)"]
[17,14,"2022-08-27T00:48:51","00:48",-38.527549428137704,145.37364406357401,"The Broadway/Shetland Heights Rd, San Remo VIC 3925, Australia",2805342,"WGI32","Low voltage AC (<1kV)","RURAL SHORT"," - switch (disconnector/isolator)","three phase","Otherwise started by a distribution system","LBRA only",0.2,"No forecast",0.05,1.0000000000000002E-2,"E0089326","20220905SPN_01","Crew arrived on site and found a 400A krone box had caught fire and dropped to the ground. Hard to judge with the green grass, but may be a 1 meter ground fire.",null,null," - underground service cable (residential)"]
[17,15,"2022-09-10T16:32:10","16:32",-38.088040317631297,145.287508559641,"25 Robusta Ave, Cranbourne VIC 3977, Australia",5671620,"CRE23","Low voltage AC (<1kV)","URBAN"," - poles / columns (minor road)","single phase","Started in or originated from a distribution system","LBRA only",0.2,"No forecast",0.05,1.0000000000000002E-2,"E0089520","20220915SPN_03","This was originally called in as a shocko, customer stating the pole was hot. After receiving the incident investigation report we became aware that the cause was a bad connection at the pole base that caused the conductive pole to become live and caused a fire contained within the pole.",null,null," - underground service cable (commercial / industrial)"]
[17,16,"2022-09-11T14:28:14","14:28",-37.761788001590297,147.36080498042702,"1860 Fernbank-Glenaladale Rd, Iguana Creek VIC 3875, Australia",1603948,"BDL44","Low voltage AC (<1kV)","RURAL LONG"," - overhead conductor (insulated)","single phase","Started by any other thing forming part of or coming into contact with a distribution system","within area delineated on plan LEGL./16-354",4.5999999999999996,"No forecast",0.05,0.22999999999999998,"E0089521","20220912SPN_01","A Passing Truck has struck and pulled down an LV service cable to 1850 Fernbank-Glenaladale Rd, Iguana Creek at LIS: 1603948. Crew isolated supply to service at LIS: 1603948 when they got on site. LV service caused small ground fire approximately 120 meters square. Crew advised us that the Fire was already out when they got to site. Protection did not operate.",null,null," - underground service cable (subdivision / construction)"]
[17,17,"2022-09-14T13:47:16","13:47",-38.198696500137196,147.35536840037199,"Longford-Loch Sport Rd, Dutson Downs VIC 3851, Australia",2506237,"SLE31","22kV AC","RURAL LONG"," - switch (any other type)","three phase","Started in or originated from a distribution system","within area delineated on plan LEGL./16-354",4.5999999999999996,"No forecast",0.05,{"$f":"IF(OR(P54=\"\",R54=\"\"),\"\",IF(AND(O54=\"within electric line construction area\",Q54=\"No forecast\"),1,P54*R54))","v":0.22999999999999998},"E0089599","20220915SPN_02","A field crew were testing the vacuum switch at HV CAP LETTS BEACH 207. After opening the vacuum switch, SL019 tripped. The crew advised that they suspected the vacuum switch phases had not all operated at the same time, but that they were all now open and it was safe to energise the line. After closing SL019, one of the HV bushings overheated, melted, then caught fire. The crew were clear at the time. The controller then opened SL019 in order to de-energise the line. The crew then used a fire extinguisher to put the fire out and opened off the HV fuses and lifted the live line clamps for the HV cap bank.",null,null," - underground service cable (other)"]
[17,18,"2022-09-19T12:33:15","12:33",-37.811950755265499,145.23196064766799,"17 Pratt St, Ringwood VIC 3134, Australia",1211839,"RWT36","Low voltage AC (<1kV)","URBAN"," - luminaires (minor road)","single phase","Started in or originated from a distribution system","LBRA only",0.2,"No forecast",0.05,1.0000000000000002E-2,"E0089638","20220919SPN_03","A security light on a pole has broken down and caught fire.",null,null,"Underground cables"]
[17,19,"2022-09-22T11:33:54","11:33",-37.025798935440299,145.13689604309499,"8 Anzac Ave, Seymour VIC 3660, Australia",4718790,"SMR13","Low voltage AC (<1kV)","RURAL SHORT"," - overhead conductor (insulated)","three phase","Started in or originated from a distribution system","LBRA only",0.2,"No forecast",0.05,1.0000000000000002E-2,"E0091133","20221121SPN_01","A faulty neutral screen cable overheated and caused the pole top it was against to slowly burn.",null,null," - underground cable"]
[17,20,"2022-09-24T14:37:00","14:37",-38.252044019435004,146.462456021592,"314 Firmins Ln, Hazelwood North VIC 3840, Australia",2614755,"MWL14","Low voltage AC (<1kV)","RURAL SHORT"," - overhead conductor (bare; all aluminium conductor)","single phase","Started by lightning striking a distribution system or a part of a distribution system ","HBRA only",1,"No forecast",0.05,0.05,"E0089831","20221004SPN_01","A lightening strike hit pole 2614755 causing an over voltage event damaging 2 dwellings. 4 Romuald road and 314 Firming lane Hazelwood North ended up with fires and equipment damage.",null,null," - underground communications cable"]
[17,21,"2022-09-24T18:47:17","18:47",-37.724572007169193,145.28481001115702,"20 Reserve Rd, Wonga Park VIC 3115, Australia",1203686,"RWN31","22kV AC","RURAL SHORT"," - fuse (boric acid)","single phase","Otherwise started by a distribution system","within area delineated on plan LEGL./16-354",4.5999999999999996,"No forecast",0.05,0.22999999999999998,"E0089680","20220926SPN_01","Crew found a candled BA fuse. no cause for the fault found.",null,null,"Poles"]
[17,22,"2022-09-29T13:28:14","13:28",-38.216405999177503,146.413996980012,"27 Crinigan Rd W, Morwell VIC 3840, Australia",2626373,"MWL13","22kV AC","RURAL SHORT"," - fuse (boric acid)","three phase","Otherwise started by a distribution system","HBRA only",1,"No forecast",0.05,0.05,"E0089776","20221003SPN_01","The crew found a candled BA fuse,",null,null," - pole (concrete)"]
[17,23,"2022-10-06T00:25:00","00:25",-38.208015987517499,145.93073000583001,"60 Wrights Rd, Warragul South VIC 3821, Australia",2704908,"WGL23","22kV AC","RURAL SHORT"," - fuse (boric acid)","three phase","Otherwise started by a distribution system","HBRA only",1,"No forecast",0.05,0.05,"E0089996","20221006SPN_01","Crew arrived on site and found a candled BA fuse that failed to eject.",null,null," - pole (steel)"]
[17,24,"2022-10-07T12:54:26","12:54",-37.628836992920597,145.51945998211102,"140 Myers Creek Rd, Healesville VIC 3777, Australia",1409881,"WYK24","22kV AC","RURAL SHORT"," - overhead conductor (bare; aluminium core steel reinforced)","three phase","Started by any tree, or part of a tree, falling upon or coming into contact with a distribution system","within area delineated on plan LEGL./16-354",4.5999999999999996,"No forecast",0.05,0.22999999999999998,"E0090041","20221011SPN_01","A tree has fallen and contacted the 22KV HV open wires and started to burn. Protection operated.",null,null," - pole (wood)"]
[17,25,"2022-10-07T18:42:45","18:42",-36.700843993601396,145.65361301614902,"811 Balmattum N Rd, Balmattum VIC 3666, Australia",3902290,"BN11","22kV AC","RURAL LONG"," - fuse (boric acid)","three phase","Started in or originated from a distribution system","within area delineated on plan LEGL./16-354",4.5999999999999996,"No forecast",0.05,0.22999999999999998,"E0090046","20221011SPN_02","Crew found a candled BA fuse. Feeder also tripped.",null,null,"Crossarms"]
[17,26,"2022-10-10T06:05:27","06:05",-36.165514991535602,147.34750898519701,"132 Hindleton Rd, Bullioh VIC 3700, Australia",5213262,"WOTS24","22kV AC","RURAL LONG"," - fuse (boric acid)","single phase","Otherwise started by a distribution system","within area delineated on plan LEGL./16-354",4.5999999999999996,"No forecast",0.05,0.22999999999999998,"E0090055","20221012SPN_01","The crew found a candled BA fuse. No ground fire.",null,null," - crossarm (wood)"]
[17,27,"2022-10-10T06:52:06","06:52",-38.269563422398299,145.83367925652701,"195 Torwood-Topiram Rd, Hallora VIC 3818, Australia",2706569,"WGL23","12.7kV AC (SWER)","RURAL SHORT"," - fuse (EDO fuse)","single wire earth return (SWER)","Otherwise started by a distribution system","HBRA only",1,"No forecast",0.05,0.05,"E0090064","20221012SPN_02","Crew found a candled EDO SWER fuse that failed to eject.",null,null," - crossarm (steel)"]
[17,28,"2022-10-16T03:01:17","03:01",-38.118308012605901,147.036297030985,"22 Eremin Ct, Wurruk VIC 3850, Australia",2501234,"SLE14","22kV AC","RURAL SHORT"," - fuse (boric acid)","three phase","Otherwise started by a distribution system","within area delineated on plan LEGL./16-354",4.5999999999999996,"No forecast",0.05,0.22999999999999998,"E0090154","20221017SPN_03","Crew attended site and found a candled BA fuse. ACR also tripped.",null,null," - crossarm (other)"]
[17,29,"2022-10-17T06:19:06","06:19",-38.243441008589699,145.96551199581003,"271 Gainsborough Rd, Gainsborough VIC 3822, Australia",2705417,"WGL23","22kV AC","RURAL SHORT"," - fuse (boric acid)","three phase","Otherwise started by a distribution system","HBRA only",1,"No forecast",0.05,0.05,"E0090169","20221018SPN_01","Crew found a candled BA fuse.",null,null,"Overhead assets"]
[17,30,"2022-10-28T16:42:45","16:42",-37.250222011437501,145.702185994828,"21 Acheron Rd, Acheron VIC 3714, Australia",4711963,"RUBA12","22kV AC","RURAL LONG"," - fuse (EDO fuse)","single phase","Started in or originated from a distribution system","within area delineated on plan LEGL./16-354",4.5999999999999996,"No forecast",0.05,0.22999999999999998,"E0090491","20221031SPN_01","Crew arrived on site and found a candled EDO fuse. There was no cause of the fault found",null,null," - capacity balancing units"]
[17,31,"2022-10-31T10:48:10","10:48",-38.027236065406697,145.67524687607903,"45 Pettigrew Rd, Garfield North VIC 3814, Australia",518267,"WGL12","12.7kV AC (SWER)","RURAL LONG"," - overhead conductor (bare; steel)","single wire earth return (SWER)","Started by any tree, or part of a tree, falling upon or coming into contact with a distribution system","HBRA only",1,"No forecast",0.05,0.05,"E0090672","20221114SPN_01","A tree has fallen onto a SWER conductor due to extreme weather causing the tree to burn.",null,null," - connector / termination"]
[17,32,"2022-11-01T13:30:37","13:30",-37.814299833561599,145.54842478918002,"154 Owens Rd, Woori Yallock VIC 3139, Australia",1405893,"WYK23","12.7kV AC (SWER)","RURAL SHORT"," - fuse (boric acid)","single wire earth return (SWER)","Started in or originated from a distribution system","within area delineated on plan LEGL./16-354",4.5999999999999996,"No forecast",0.05,0.22999999999999998,"E0090517","20221102SPN_02","Crew arrived on site and found a candled BA fuse on SWER line.",null,null," - dropper / bridge"]
[17,33,"2022-11-01T16:40:44","16:40",-38.188920988331098,146.54671497746801,"18 Firmin St, Traralgon VIC 3844, Australia",2613710,"TGN11","Low voltage AC (<1kV)","RURAL SHORT"," - connection box","three phase","Started by any person, bird, reptile or other animal coming into contact with a distribution system","LBRA only",0.2,"No forecast",0.05,1.0000000000000002E-2,"E0090518","20221102SPN_03","Crew found a LV FOLCB had caught fire. ! LV fuse operated. Seems to of been caused by birds nesting.",null,null," - guy wire"]
[17,34,"2022-11-07T12:53:51","12:53",-38.089507014733599,145.33435397908002,"1775 Thompsons Rd, Clyde North VIC 3978, Australia",508242,"CLN14","22kV AC","URBAN"," - dropper / bridge","three phase","Started in or originated from a distribution system","HBRA only",1,"No forecast",0.05,0.05,"E0090671","20221114SPN_02","An LA dropper failed causing a 30 meter ground fire and damage to an underground cable..\n\n\n",null,null," - insulator tie wires / connections"]
[17,35,"2022-11-10T04:50:01","04:50",-38.032616017133002,146.63191399562299,"260 Toongabbie-Cowwarr Rd, Toongabbie VIC 3856, Australia",2602847,"TGN31","22kV AC","RURAL LONG"," - fuse (EDO fuse)","single phase","Otherwise started by a distribution system","HBRA only",1,"No forecast",0.05,0.05,"E0090742","20221114SPN_03","Crew arrived on site and found a candled fuse.",null,null," - insulators"]
[17,36,"2022-11-12T17:26:18","17:26",-37.509932990821099,145.02618803069203,"15 Elizabeth Pl, Beveridge VIC 3753, Australia",914448,"KLO14","22kV AC","RURAL LONG"," - fuse (boric acid)","three phase","Otherwise started by a distribution system","within area delineated on plan LEGL./16-354",4.5999999999999996,"No forecast",0.05,0.22999999999999998,"E0090997","20221115SPN_01","Crew attended site and found a candled BA fuse",null,null," - tower"]
[17,37,"2022-11-13T21:08:34","21:08",-36.296149014478097,146.26554302426601,"901 Wangaratta-Yarrawonga Rd, Killawarra VIC 3678, Australia",5696900,"WN2","22kV AC","RURAL LONG"," - fuse (boric acid)","three phase","Otherwise started by a distribution system","within area delineated on plan LEGL./16-354",4.5999999999999996,"No forecast",0.05,0.22999999999999998,"E0090998","20221115SPN_02","Crew attended site and found a candled BA fuse",null,null," - traction lines"]
[17,38,"2022-11-18T06:47:41","06:47",-38.734570241968001,145.914276292279,"180 Bald Hills Rd, Tarwin Lower VIC 3956, Australia",2806881,"WGI24","12.7kV AC (SWER)","RURAL SHORT"," - fuse (boric acid)","single wire earth return (SWER)","Otherwise started by a distribution system","within area delineated on plan LEGL./16-354",4.5999999999999996,"No forecast",0.05,{"$f":"IF(OR(P75=\"\",R75=\"\"),\"\",IF(AND(O75=\"within electric line construction area\",Q75=\"No forecast\"),1,P75*R75))","v":0.22999999999999998},"E0091143","20221121SPN_02","Crew arrived and found a candled BA fuse that failed to eject.",null,null,"Underground assets"]
[{"$f":"COUNTA(C76:O76,Q76,T76:V76)","v":17},39,"2022-11-21T06:24:24","06:24",-37.849039095537897,145.52639586753003,"2400 Healesville - Koo Wee Rup Rd, Yellingbo VIC 3139, Australia",1315998,"LDL13","12.7kV AC (SWER)","RURAL SHORT"," - fuse (boric acid)","single wire earth return (SWER)","Started by lightning striking a distribution system or a part of a distribution system ","within area delineated on plan LEGL./16-354",{"$f":"IF(O76=\"\",\"\",IF(O76=\"LBRA only\",0.2,IF(O76=\"HBRA only\",1,IF(O76=\"within electric line construction area\",19.8,IF(O76=\"within area delineated on plan LEGL./16-354\",4.6,\"\")))))","v":4.5999999999999996},"No forecast",0.05,0.22999999999999998,"E0091190","20221121SPN_04","Crew attended site and found a SWER B/A fuse had candled and failed to eject. Lightening has been identified of being the initial cause of the fault.",null,null," - LV pillar"]
[17,40,"2022-11-21T13:18:15","13:18",-37.823037987059699,145.23735398392401,"Aquinas College/Great Ryrie St, Heathmont VIC 3135, Australia",1211364,"RWT22","22kV AC","URBAN"," - overhead conductor (bare; aluminium core steel reinforced)","three phase","Started by any tree, or part of a tree, falling upon or coming into contact with a distribution system","LBRA only",0.2,"No forecast",0.05,1.0000000000000002E-2,"E0091531","20221206SPN_01","During a large storm, a tree failed and fell onto the lines and transformer causing a pole fire. ",null,null," - services pit"]
[17,41,"2022-11-21T19:10:56","19:10",-37.836801295409202,147.568862535845,"42 Verdell St, Hillside VIC 3875, Australia",1612474,"BDL44","22kV AC","RURAL LONG"," - overhead conductor (bare; aluminium core steel reinforced)","three phase","Started by any tree, or part of a tree, falling upon or coming into contact with a distribution system","within area delineated on plan LEGL./16-354",4.5999999999999996,"Moderate",0.33400000000000002,1.5364,"E0091213","20221122SPN_01","A Tree branch brought down 66kV & 22kV conductors at pole 1612474 and caused a 270m2 fire at base of pole, Protection operated.",null,null,"Transformers"]
[17,42,"2022-11-23T17:19:31","17:19",-38.334492095316499,146.02608307240502,"10 Mayberrys Rd, Hallston VIC 3953, Australia",2000792,"LGA11","12.7kV AC (SWER)","RURAL LONG"," - fuse (EDO fuse)","single wire earth return (SWER)","Otherwise started by a distribution system","HBRA only",1,"No forecast",0.05,0.05,"E0091266","20221128SPN_02","Crew attended site and found a candled EDO fuse on a SWER line.",null,null," - transformer (pole mounted)"]
[17,43,"2022-11-30T06:10:19","06:10",-37.632399994912298,145.193899010509,"250 Christian Rd, Cottles Bridge VIC 3099, Australia",929424,"DRN23","22kV AC","RURAL LONG"," - fuse (EDO fuse)","single phase","Otherwise started by a distribution system","HBRA only",1,"No forecast",0.05,0.05,"E0091457","20221130SPN_01","Crew arrived on site and found a candled BA fuse.",null,null," - transformer (kiosk mounted)"]
[17,44,"2022-12-01T09:02:09","09:02",-38.210240993497699,146.559562025904,"79 Lansdowne Rd, Traralgon VIC 3844, Australia",2720900,"TGN23","22kV AC","RURAL SHORT"," - surge diverter","three phase","Started by any person, bird, reptile or other animal coming into contact with a distribution system","HBRA only",1,"No forecast",0.05,0.05,"E0091497","20221201SPN_01","There was a Small Grass fire 1m by 1m at LIS: 2720900 cased by Burnet LA caused from a bird. ",null,null," - transformer (ground outdoor mounted)"]
[17,45,"2022-12-02T06:11:33","06:11",-37.096975020234005,145.056799980108,"Killarney, 500 Tallarook-Pyalong Rd, Tallarook VIC 3659, Australia",4718062,"SMR23","22kV AC","RURAL SHORT"," - fuse (EDO fuse)","single phase","Otherwise started by a distribution system","within area delineated on plan LEGL./16-354",4.5999999999999996,"No forecast",0.05,0.22999999999999998,"E0091507","20221202SPN_01","Crew arrived on site and found a candled EDO fuse",null,null," - transformer (indoor chamber mounted)"]
[17,46,"2022-12-02T09:57:00","09:57",-38.256731017602796,145.94210101059002,"23 Peters Rd, Ellinbank VIC 3821, Australia",2705382,"WGL23","22kV AC","RURAL SHORT"," - fuse (boric acid)","single phase","Otherwise started by a distribution system","HBRA only",1,"Moderate",0.33400000000000002,0.33400000000000002,"E0091513","20221202SPN_02","Crew arrived on site and found a candled BA fuse and blown LAs",null,null," - transformer (any other type)"]
[17,47,"2022-12-08T06:01:41","06:01",-38.411748987086597,145.54174898436503,"122 Grantville-Glen Alvie Rd, Grantville VIC 3984, Australia",2803031,"LLG13","22kV AC","RURAL SHORT"," - fuse (boric acid)","three phase","Otherwise started by a distribution system","within area delineated on plan LEGL./16-354",4.5999999999999996,"Moderate",0.33400000000000002,1.5364,"E0091973","20221215SPN_01","The crew arrived on site and found a candled BA fuse.",null,null," - measurement transformer (current transformer)"]
[17,48,"2022-12-11T13:07:32","13:07",-37.9738750038996,147.09520798496899,"88 Redbank Rd, Stratford VIC 3862, Australia",2512602,"MFA21","22kV AC","RURAL LONG"," - fuse (boric acid)","three phase","Started in or originated from a distribution system","HBRA only",1,"Moderate",0.33400000000000002,0.33400000000000002,"E0092001","20221213SPN_01","Crew attended site and found 1 blown fuse and 1 candled fuse caused by clashing droppers. Also causing a 2 X 4 meter ground fire.",null,null," - measurement transformer (voltage transformer)"]
[17,49,"2022-12-14T05:55:10","05:55",-36.467882011807099,146.53434497785202,"2543 Snow Rd, Markwood VIC 3678, Australia",5111088,"WN5","22kV AC","RURAL LONG"," - fuse (boric acid)","single phase","Otherwise started by a distribution system","within area delineated on plan LEGL./16-354",4.5999999999999996,"Moderate",0.33400000000000002,1.5364,"E0092024","20221215SPN_02","Crew attended site and found a candled fuse.",null,null," - measurement transformer (capacitive voltage transformer)"]
[17,50,"2022-12-19T13:24:01","13:24",-38.182599397072494,145.57343929297002,"730 Koo Wee Rup-Longwarry Rd, Bayles VIC 3981, Australia",513019,"LLG11","Low voltage AC (<1kV)","RURAL SHORT"," - connector / termination","single phase","Started in or originated from a distribution system","within area delineated on plan LEGL./16-354",4.5999999999999996,"No forecast",0.05,0.22999999999999998,"E0092076","20221220SPN_01","Crew had a fault where the lv had broken away from a copper-ally D. pole 513019 at 31 Finicks road Bayles 3981\nThis caused a 1 meter ground fire before a fuse blew",null,null,"Fuses and switchgear"]
[17,51,"2022-12-22T16:14:13","16:14",-37.449734585097296,145.41476023178402,"3523 Melba Hwy, Glenburn VIC 3717, Australia",1400171,"KLK11","22kV AC","RURAL SHORT"," - fuse (boric acid)","single phase","Started in or originated from a distribution system","within electric line construction area",19.8,"No forecast",0.05,1,"E0092152","20221223SPN_01","Crew attended site and found a candled BA fuse.",null,null," - fuse (boric acid)"]
[17,52,"2022-12-27T20:46:54","20:46",-37.086564002828496,145.14322297886901,"495 Hume and Hovell Rd, Seymour VIC 3660, Australia",4705692,"SMR14","22kV AC","RURAL LONG"," - fuse (boric acid)","single phase","Otherwise started by a distribution system","within electric line construction area",19.8,"Moderate",0.33400000000000002,6.6132000000000009,"E0092160","20221228SPN_01","Crew arrived on site and found a candeling glowing BA fuse.",null,null," - fuse (EDO fuse)"]
[17,53,"2022-12-29T13:34:32","13:34",-37.923880002624003,145.98095000319702,"290 Murphy Rd, Neerim Junction VIC 3832, Australia",2708345,"WGL24","22kV AC","RURAL LONG"," - fuse (EDO fuse)","single phase","Otherwise started by a distribution system","HBRA only",1,"Moderate",0.33400000000000002,0.33400000000000002,"E0092170","20230102SPN_01","The crew attended site and found a candled EDO fuse that failed to eject.",null,null," - fuse (Fault Tamer)"]
[17,54,"2022-12-29T15:09:00","15:09",-38.455794626751398,145.51676008436002,"331 McKenzie Rd, Glen Forbes VIC 3990, Australia",2812854,"LLG13","12.7kV AC (SWER)","RURAL SHORT"," - fuse (boric acid)","single wire earth return (SWER)","Otherwise started by a distribution system","within area delineated on plan LEGL./16-354",4.5999999999999996,"Moderate",0.33400000000000002,1.5364,"E0092171","20230102SPN_02","The crew attended site and found a candled BA fuse.",null,null," - fuse (powder filled)"]
[17,55,"2022-12-31T11:21:51","11:21",-36.371541980453799,146.317728022995,"43 White St, Wangaratta VIC 3677, Australia",5109655,"WN6","Low voltage AC (<1kV)","RURAL LONG"," - crossarm (wood)","three phase","Started in or originated from a distribution system","LBRA only",0.2,"Moderate",0.33400000000000002,6.6800000000000012E-2,"E0092195","20230102SPN_03","A X arm had failed causing the LV open wire conductors to fall to the ground causing a small 1 meter grass fire and operating a LV fuse.",null,null," - fuse (any other type)"]
[17,56,"2022-12-31T16:34:00","16:34",-36.365423001209003,146.31604101012201,"Yarrunga Lpo, 51 Vincent Rd, Wangaratta VIC 3677, Australia",5109006,"WN6","22kV AC","RURAL LONG"," - overhead conductor (bare; aluminium core steel reinforced)","three phase","Started by any person, bird, reptile or other animal coming into contact with a distribution system","LBRA only",0.2,"Moderate",0.33400000000000002,6.6800000000000012E-2,"E0092196","20230102SPN_04","At Switch 835144, A birds nest on the top of the pole caught fire and caused flash over causing the zone sub protection to operate. There was no ground fire.",null,null," - circuit breaker"]
[17,57,"2022-12-31T16:37:00","16:37",-37.7616040183932,145.35523599994599,"476 Swansea Rd, Lilydale VIC 3140, Australia",1008052,"LDL-RWTS","66kV AC","UNCLASSIFIED"," - measurement transformer (current transformer)","three phase","Started in or originated from a distribution system","LBRA only",0.2,"Moderate",0.33400000000000002,6.6800000000000012E-2,"E0092197","20230102SPN_05","LDL NO 7 BUS CVT FAILED EXPLOSIVILY CAUSING THE ZONE SUB FEEDER TO TRIP. THERE WAS A SMALL 10 METER SQUARE CONTAINED GROUND FIRE.",null,null," - switch (disconnector/isolator)"]
[17,58,"2023-01-02T20:30:11","20:30",-38.089682005127393,145.89581198663302,"615 Old Sale Rd, Drouin West VIC 3818, Australia",2701951,"WGL21","22kV AC","RURAL SHORT"," - overhead conductor (bare; all aluminium conductor)","three phase","Started by any tree, or part of a tree, falling upon or coming into contact with a distribution system","HBRA only",1,"No forecast",0.05,0.05,"E0092204","20230103SPN_01","A Tree brought conductors down causing a small spot fire of about 10sq /m at Lis 2701951. Fire was extinguished by fire dep. The feeder ACR tripped.",null,null," - switch (earth)"]
[17,59,"2023-01-04T16:53:24","16:53",-36.180188019609098,148.02094001998901,"165 Upper Murray Rd, Towong Upper VIC 3707, Australia",5215307,"WOTS24","22kV AC","RURAL LONG"," - fuse (EDO fuse)","single phase","Started in or originated from a distribution system","within area delineated on plan LEGL./16-354",4.5999999999999996,"Moderate",0.33400000000000002,1.5364,"E0092215","20230105SPN_01","Crew arrived on site and found a candled EDO fuse. No ground fire.",null,null," - switch (FuseSaver)"]
[17,60,"2023-01-07T15:38:14","15:38",-37.978890981175098,147.117703988621,"123 Gooch Rd, Stratford VIC 3862, Australia",2512619,"MFA21","22kV AC","RURAL LONG"," - fuse (boric acid)","single phase","Started in or originated from a distribution system","HBRA only",1,"Moderate",0.33400000000000002,0.33400000000000002,"E0092223","20230110SPN_01","A candled BA fuse failed to eject causing an 800 meter square ground fire. The top pin failed to fire.",null,null," - switch (any other type)"]
[17,61,"2023-01-08T11:37:39","11:37",-36.444430008120094,146.380065010077,"50 King St, Oxley VIC 3678, Australia",5100291,"WN5","22kV AC","RURAL LONG"," - fuse (EDO fuse)","three phase","Started in or originated from a distribution system","within area delineated on plan LEGL./16-354",4.5999999999999996,"Moderate",0.33400000000000002,1.5364,"E0092225","20230110SPN_02","A candled EDO fuse failed to eject causing a less then 1 meter square ground fire.",null,null,"SCADA, network control and protection systems"]
[17,62,"2023-01-08T19:35:00","19:35",-38.597871181992694,146.74199588201901,"Old Sale Rd, Yarram VIC 3971, Australia",2609303,"FTR23","Low voltage AC (<1kV)","RURAL LONG"," - connection box","single phase","Started in or originated from a distribution system","HBRA only",1,"Moderate",0.33400000000000002,0.33400000000000002,"E0092226","20230110SPN_03","A FOLCB overheated and the fuse holder melted dropping melted particles to the ground causing a 300mm square ground fire.",null,null," - audio frequency load controller (AFLC)"]
[17,63,"2023-01-14T19:43:51","19:43",-37.787340018045697,145.20221701206199,"394 Park Rd, Park Orchards VIC 3114, Australia",1200765,"RWN26","Low voltage AC (<1kV)","RURAL SHORT"," - overhead conductor (bare; all aluminium conductor)","three phase","Started in or originated from a distribution system","within area delineated on plan LEGL./16-354",4.5999999999999996,"High",0.67800000000000005,3.1187999999999998,"E0092445","20230116SPN_02","An open wire LV cable has dropped to the ground causing a 1 meter square ground fire. The LV fuse operated.",null,null," - arc suppresion coil"]
[17,64,"2023-01-14T20:46:26","20:46",-37.579161327384497,145.41344861378499,"1980 Melba Hwy, Dixons Creek VIC 3775, Australia",1016350,"LDL14","Low voltage AC (<1kV)","RURAL SHORT"," - connection box","single phase","Started in or originated from a distribution system","within area delineated on plan LEGL./16-354",4.5999999999999996,"High",0.67800000000000005,3.1187999999999998,"E0092446","20230116SPN_03","An LV FOLCB on a pole overheated and caused a pole fire. There was no ground fire.",null,null," - automatic circuit recloser (ACR)"]
[17,65,"2023-01-16T07:46:50","07:46",-38.409649012055205,145.48338202173002,"16 Marine Rd, Tenby Point VIC 3984, Australia",2803172,"LLG13","22kV AC","RURAL SHORT"," - fuse (EDO fuse)","single phase","Otherwise started by a distribution system","within area delineated on plan LEGL./16-354",4.5999999999999996,"Moderate",0.33400000000000002,1.5364,"E0092541","20230117SPN_01","Crew arrived on site and found a candled EDO fuse that failed to eject. No ground fire.",null,null," - communications linear assets"]
[17,66,"2023-01-18T07:42:05","07:42",-37.705731010251398,148.527250007009,"684 A1, Orbost VIC 3888, Australia",1910978,"NLA31","22kV AC","RURAL LONG"," - fuse (boric acid)","single phase","Started in or originated from a distribution system","HBRA only",1,"No forecast",{"$f":"IF(Q103=\"\",\"\",IF(C103>=DATE(2022,9,1),IF(Q103=\"No forecast\",0.05,IF(Q103=\"Moderate\",0.334,IF(Q103=\"High\",0.678,IF(Q103=\"Extreme\",2.272,4.754)))),0.05))","v":0.05},0.05,"E0092570","20230119SPN_02","Crew arrived on site and found 2 candled BA fuses.",null,null," - communications network assets"]
[17,67,"2023-01-19T01:58:22","01:58",-37.704323059978094,145.10614118412701,"19 Flintoff St, Greensborough VIC 3088, Australia",903507,"WT10","22kV AC","URBAN"," - overhead conductor (bare; all aluminium conductor)","three phase","Started by any person, bird, reptile or other animal coming into contact with a distribution system","LBRA only",0.2,"Moderate",0.33400000000000002,6.6800000000000012E-2,"E0092602","20230120SPN_01","It was reported that a fault with an U/G HV cable caused a faulty gas main to catch fire causing a small ground fire. Protection operated.",null,null," - communications site infrastructure"]
[17,68,"2023-01-20T19:22:51","19:22",-36.718799003686499,146.94924801855402,"Mountain Valley Farm, 486 Back Porepunkah Rd, Bright VIC 3741, Australia",4506958,"BRT22","22kV AC","RURAL SHORT"," - overhead conductor (bare; steel)","single phase","Started by any tree, or part of a tree, falling upon or coming into contact with a distribution system","HBRA only",1,"Moderate",0.33400000000000002,0.33400000000000002,"E0092619","20230123SPN_05","A tree has failed falling onto the 22Kv open wire causing a small less then 1 meter ground fire. The cable was live on the ground where protection did not operate.",null,null," - field devices"]
[17,69,"2023-01-22T08:43:23","08:43",-36.554963985359301,146.29281798420701,"342 Banksdale Rd, Greta VIC 3675, Australia",5109459,"WN6","22kV AC","RURAL LONG"," - fuse (EDO fuse)","single phase","Started by any person, bird, reptile or other animal coming into contact with a distribution system","within area delineated on plan LEGL./16-354",4.5999999999999996,"Moderate",0.33400000000000002,1.5364,"E0092622","20230123SPN_04","A bird strike caused a fault in which operated the EDO fuse that then candled.",null,null," - local network wiring assets"]
[17,70,"2023-01-22T15:48:35","15:48",-36.113039458403001,147.01375173677499,"274 Bonegilla Rd, Bonegilla VIC 3691, Australia",5235741,"WOTS25","22kV AC","RURAL SHORT"," - pole (concrete)","three phase","Started by lightning striking a distribution system or a part of a distribution system ","within area delineated on plan LEGL./16-354",4.5999999999999996,"Moderate",0.33400000000000002,{"$f":"IF(OR(P107=\"\",R107=\"\"),\"\",IF(AND(O107=\"within electric line construction area\",Q107=\"No forecast\"),1,P107*R107))","v":1.5364},"E0092623","20230123SPN_03","Lightening has hit the concrete pole causing a 1 meter square ground fire as well as damage the HV earth conductor at the base of the pole.",null,null," - master station assets"]
[17,71,"2023-01-22T15:56:38","15:56",-36.231683009930897,146.84733800824301,"2398 Beechworth-Wodonga Rd, Leneva VIC 3691, Australia",5202694,"WOTS25","22kV AC","RURAL SHORT"," - fuse (boric acid)","three phase","Otherwise started by a distribution system","within area delineated on plan LEGL./16-354",4.5999999999999996,"Moderate",0.33400000000000002,1.5364,"E0092624","20230123SPN_02","Crew found a candled BA fuse that caused a 10 meter square ground fire.",null,null," - neutral earthing resistor"]
[17,72,"2023-01-22T21:59:37","21:59",-36.440711013199802,146.931802973923,"Dederang Rd, Glen Creek VIC 3691, Australia",5201104,"WOTS11","22kV AC","RURAL LONG"," - fuse (boric acid)","three phase","Started in or originated from a distribution system","within electric line construction area",19.8,"Moderate",0.33400000000000002,6.6132000000000009,"E0092625","20230123SPN_01","Crew arrived and found 2 blown BA fuses in which one had candled.",null,null," - oil-filled circuit recloser (OCR)"]
[17,73,"2023-01-23T07:40:46","07:40",-37.639096001862498,145.257297021477,"305A Long Gully Rd, Panton Hill VIC 3759, Australia",920339,"DRN23","22kV AC","RURAL LONG"," - fuse (boric acid)","single phase","Started by any person, bird, reptile or other animal coming into contact with a distribution system","HBRA only",1,"Moderate",0.33400000000000002,0.33400000000000002,"E0092635","20230123SPN_08","Crew arrived on site and found a candled BA fuse. The fault was caused by a possum",null,null," - rapid earth fault current limiter (REFCL)"]
[17,74,"2023-01-23T11:45:00","11:45",-37.402455978100797,144.97040698517,"2 Cahill Ct, Wallan VIC 3756, Australia",928518,"KLO24","22kV AC","RURAL SHORT"," - transformer (pole mounted)","single phase","Otherwise started by a distribution system","LBRA only",0.2,"Moderate",0.33400000000000002,6.6800000000000012E-2,"E0092656","20230124SPN_01","LAs and transformer caught fire during REFCL testing. Protection operated.",null,null," - surge diverter"]
[17,75,"2023-01-24T15:15:33","15:15",-38.191064134079198,145.34975453357703,"2525 S Gippsland Hwy, Tooradin VIC 3980, Australia",517098,"CRE33","Low voltage AC (<1kV)","RURAL SHORT"," - connection box","single phase","Started in or originated from a distribution system","HBRA only",1,"Moderate",0.33400000000000002,0.33400000000000002,"E0092670","20230127SPN_01","It had been reported that a FOLCB had caught fire on a pole. No ground fire.",null,null," - voltage regulator"]
[17,76,"2023-01-27T15:52:54","15:52",-37.413525005378197,144.962624995661,"43 King William Ct, Wallan VIC 3756, Australia",928421,"KLO24","22kV AC","RURAL SHORT"," - earth / earthing","single phase","Otherwise started by a distribution system","LBRA only",0.2,"Moderate",0.33400000000000002,6.6800000000000012E-2,"E0092711","20230131SPN_01","At Sub Pole LIS 928421, 0.5 meter squared burn marks appeared at the base of the pole where sub earth goes into ground. REFCL testing was being performed at the time of the fire. There was also damage to the LAs. 1 BA fuse had blown.",null,null,"Public lighting"]
[17,77,"2023-01-28T11:25:07","11:25",-36.839775320066693,145.33520121411601,"148 Alexandersons Rd, Locksley VIC 3665, Australia",5718626,"SMR24","22kV AC","RURAL LONG"," - switch (disconnector/isolator)","three phase","Started by any person, bird, reptile or other animal coming into contact with a distribution system","within area delineated on plan LEGL./16-354",4.5999999999999996,"High",0.67800000000000005,3.1187999999999998,"E0092713","20230131SPN_03","The crew found a Possum hanging from the bottom of a 22kV fuse unit on the Locksley Iso (LIS #5718626) that has caused tracking, burning the wood pole & causing a 1000 meter square grass fire. ",null,null," - brackets (major road)"]
[17,78,"2023-01-29T00:18:02","00:18",-37.935971023956597,145.54002101636203,"145 Ure Rd, Gembrook VIC 3783, Australia",416688,"OFR23","22kV AC","RURAL LONG"," - overhead conductor (bare; aluminium core steel reinforced)","three phase","Otherwise started by a distribution system","HBRA only",1,"High",0.67800000000000005,0.67800000000000005,"E0092714","20230131SPN_04","There was a 5 meter square ground fire at the base of the pole. There was no cause found and all assets were fine.",null,null," - brackets (minor road)"]
[17,79,"2023-01-29T03:36:24","03:36",-38.137165730135393,146.66709470484099,"Lower Cairnbrook Rd, Glengarry VIC 3854, Australia",2602296,"TGN31","22kV AC","RURAL LONG"," - fuse (EDO fuse)","three phase","Otherwise started by a distribution system","HBRA only",1,"Moderate",0.33400000000000002,0.33400000000000002,"E0092715","20230131SPN_05","Crew arrived on site and found a candled HV fuse and a 2200 meter square ground fire.",null,null," - lamps (major road)"]
[17,80,"2023-01-29T09:35:47","09:35",-37.09011198903,145.447244012461,"3259 Highlands Rd, Highlands VIC 3660, Australia",3904267,"BN11","22kV AC","RURAL LONG"," - fuse (boric acid)","single phase","Otherwise started by a distribution system","within area delineated on plan LEGL./16-354",4.5999999999999996,"Moderate",0.33400000000000002,1.5364,"E0092716","20230201SPN_01","Crew arrived on site and found a candled BA fuse that failed to eject.",null,null," - lamps (minor road)"]
[17,81,"2023-01-30T12:14:42","12:14",-38.215473986182296,146.40681702002502,"90 Crinigan Rd W, Morwell VIC 3840, Australia",2617293,"MWL13","22kV AC","RURAL SHORT"," - fuse (boric acid)","three phase","Otherwise started by a distribution system","HBRA only",1,"Moderate",0.33400000000000002,0.33400000000000002,"E0092747","20230201SPN_02","The crew found a candled BA fuse that failed to eject.",null,null," - luminaires (major road)"]
[17,82,"2023-02-02T02:09:40","02:09",-38.506297122504598,145.27381948113501,"40 The Esplanade, Sunderland Bay VIC 3922, Australia",2809000,"PHI11","Low voltage AC (<1kV)","RURAL SHORT"," - overhead conductor (bare; all aluminium conductor)","three phase","Started in or originated from a distribution system","LBRA only",0.2,"Moderate",0.33400000000000002,6.6800000000000012E-2,"E0092865","20230202SPN_01","Crew attended and found a LV ABC cable had broken down and burnt causing a 2 meter ground fire.",null,null," - luminaires (minor road)"]
[17,83,"2023-02-02T17:13:55","17:13",-37.962382751199399,145.50501531361499,"1475 Pakenham Rd, Mount Burnett VIC 3781, Australia",504204,"OFR23","22kV AC","RURAL LONG"," - overhead conductor (bare; steel)","three phase","Started by any tree, or part of a tree, falling upon or coming into contact with a distribution system","HBRA only",1,"High",0.67800000000000005,0.67800000000000005,"E0092876","20230206SPN_01","The crew found 1 blown and one candled BA fuse.",null,null," - poles / columns (major road)"]
[17,84,"2023-02-02T20:18:46","20:18",-38.054296992185904,145.763081017536,"379 Morrison Rd, Labertouche VIC 3816, Australia",2716751,"WGL21","Low voltage AC (<1kV)","RURAL SHORT"," - connection box","single phase","Started in or originated from a distribution system","HBRA only",1,"High",0.67800000000000005,0.67800000000000005,"E0092877","20230206SPN_02","Crew attended site and found a burnt out and melted LV FOLCB.",null,null," - poles / columns (minor road)"]
[17,85,"2023-02-05T15:21:24","15:21",-38.202457985200006,146.439506994629,"620 Old Melbourne Road, Morwell VIC 3840, Australia",5819950,"MWL23","22kV AC","RURAL SHORT"," - overhead conductor (bare; all aluminium conductor)","three phase","Started by any other thing forming part of or coming into contact with a distribution system","HBRA only",1,"Moderate",0.33400000000000002,0.33400000000000002,"E0092891","20230207SPN_01","Crew arrived on site and found a helium balloon contacted the 22KV H/V lines causing a 200 meter square ground fire.",null,null,"Other "]
[17,86,"2023-02-06T15:12:52","15:12",-38.161843013792399,146.71264097973102,"Blackwood, 1674 Princes Hwy, Flynn VIC 3844, Australia",2607768,"TGN41","22kV AC","RURAL LONG"," - fuse (boric acid)","three phase","Started in or originated from a distribution system","HBRA only",1,"Moderate",0.33400000000000002,0.33400000000000002,"E0092918","20230302SPN_02","Crew arrived on site and found a candled BA fuse. No ground fire.",null,null," - connection box"]
[17,87,"2023-02-11T09:16:17","09:16",-38.349825981567598,146.36187597870901,"75 Middle Creek Rd, Yinnar South VIC 3869, Australia",2615053,"MWL25","22kV AC","RURAL SHORT"," - fuse (boric acid)","single phase","Started by any person, bird, reptile or other animal coming into contact with a distribution system","HBRA only",1,"Moderate",0.33400000000000002,0.33400000000000002,"E0092969","20230213SPN_01","The crew found a candled BA fuse. The fault was caused by a bird.",null,null," - earth / earthing"]
[17,88,"2023-02-11T15:39:00","15:39",-38.114408978503697,146.861268015262,"1403 Maffra-Rosedale Rd, Nambrok VIC 3847, Australia",2509918,"MFA22","22kV AC","RURAL LONG"," - fuse (EDO fuse)","three phase","Started by lightning striking a distribution system or a part of a distribution system ","HBRA only",1,"Moderate",0.33400000000000002,0.33400000000000002,"E0092971","20230213SPN_02","Crew found a blown EDO fuse caused by lightening. They also saw evidence of a 60 meter square ground fire."]
[17,89,"2023-02-13T11:03:33","11:03",-38.457279595333802,145.51103710959001,"270 McKenzie Rd, Bass VIC 3991, Australia",2811901,"LLG13","Low voltage AC (<1kV)","RURAL SHORT"," - connection box","single phase","Started in or originated from a distribution system","within area delineated on plan LEGL./16-354",4.5999999999999996,"Moderate",0.33400000000000002,1.5364,"E0092986","20230221SPN_05","A FOLCB on the pole caught fire causing a 4 meter square ground fire."]
[17,90,"2023-02-13T15:06:19","15:06",-36.826685982807199,145.46359198918901,"Killeen, 224 Longwood-Mansfield Rd, Creightons Creek VIC 3666, Australia",3920526,"BN11","22kV AC","RURAL LONG"," - fuse (boric acid)","single phase","Started in or originated from a distribution system","within area delineated on plan LEGL./16-354",4.5999999999999996,"High",0.67800000000000005,3.1187999999999998,"E0092999","20230221SPN_04","Crew found a candled fuse that caused a 200 meter square ground fire. Zone sub and feeder tripped. This event was caused during REFCL testing.",null,null,"Extra low voltage AC (<50V)"]
[17,91,"2023-02-14T15:00:01","15:00",-38.669923000307598,146.34115098104201,"Great Southern Rail Trl, Toora VIC 3962, Australia",2024361,"FTR23","22kV AC","RURAL LONG"," - overhead conductor (bare; all aluminium conductor)","three phase","Started by any person, bird, reptile or other animal coming into contact with a distribution system","HBRA only",1,"Moderate",0.33400000000000002,0.33400000000000002,"E0093024","20230216SPN_01","A crow has contacted 2 phases of the HV open wire O/H cables causing a 150 meter square ground fire.\nProtection did not operate.",null,null,"Low voltage AC (<1kV)"]
[17,92,"2023-02-17T17:54:43","17:54",-38.0867560000124,145.75308198255303,"37 Berryman Rd, Longwarry North VIC 3816, Australia",2709770,"WGL21","22kV AC","RURAL SHORT"," - fuse (boric acid)","single phase","Otherwise started by a distribution system","HBRA only",1,"High",0.67800000000000005,0.67800000000000005,"E0093067","20230221SPN_03","Crew arrived on site and found a damaged LA and a candled BA fuse.",null,null,"2.2kV AC"]
[17,93,"2023-02-19T18:43:41","18:43",-38.2171869941022,145.92853200496901,"119 Bull Swamp Rd, Warragul South VIC 3821, Australia",2704917,"WGL23","Low voltage AC (<1kV)","RURAL SHORT"," - overhead conductor (bare; copper)","single phase","Started by any tree, or part of a tree, falling upon or coming into contact with a distribution system","HBRA only",1,"Moderate",0.33400000000000002,0.33400000000000002,"E0093070","20230221SPN_02","The crew Found a lv bare open wire conductor on the ground between Lis 2704917 and 2704919 that was brought down by a tree branch. A Small 40 meter square grass fire occurred but was extinguished. . EDO fuse operated.",null,null,"6.6kV AC"]
[17,94,"2023-02-21T06:48:32","06:48",-37.901113987353497,145.29662001003601,"151 Glenfern Rd Service Rd, Upper Ferntree Gully VIC 3156, Australia",1305361,"BGE12","22kV AC","RURAL SHORT"," - crossarm (wood)","three phase","Started in or originated from a distribution system","within area delineated on plan LEGL./16-354",4.5999999999999996,"High",0.67800000000000005,3.1187999999999998,"E0093127","20230221SPN_08","A 22KV X arm caught fire due to tracking with the rain drizzling. The fire then caused the X arm to break. Protection operated. No ground fire.",null,null,"11kV AC"]
[17,95,"2023-02-21T06:48:47","06:48",-38.217459020159495,145.87932301150101,"1412 Lardners Track, Lardner VIC 3821, Australia",2705253,"WGL23","22kV AC","RURAL SHORT"," - overhead conductor (bare; steel)","three phase","Started in or originated from a distribution system","HBRA only",1,"Moderate",0.33400000000000002,0.33400000000000002,"E0093123","20230221SPN_07","The crew arrived and found what was a live 22KV open wire on the ground which caused slight burn marks on the green grass where the cable was laying. BA fuse operated over time.",null,null,"12.7kV AC (SWER)"]
[17,96,"2023-02-21T09:22:44","09:22",-38.202624857127901,145.48302370515501,"180 Rossiter Rd, Koo Wee Rup VIC 3981, Australia",523457,"LLG14","Low voltage AC (<1kV)","RURAL SHORT"," - connection box","three phase","Started by any person, bird, reptile or other animal coming into contact with a distribution system","within area delineated on plan LEGL./16-354",4.5999999999999996,"High",0.67800000000000005,3.1187999999999998,"E0093128","20230221SPN_09","Concreters whilst drilling board pier holes with an auger on a private vacant block of land have drilled in to\n16mm 3 core cable. This in turn created a fault at the FOLCB on pole 523457 which resulted in the LV\nXarm being covered in what appears to be soot caused from the FOLCB catching fire.\n",null,null,"22kV AC"]
[17,97,"2023-02-21T10:16:19","10:16",-37.696416004339802,145.10844500586603,"101 Diamond Creek Rd, Greensborough VIC 3088, Australia",903212,"WT8","Low voltage AC (<1kV)","URBAN"," - underground service cable (residential)","three phase","Otherwise started by a distribution system","LBRA only",0.2,"High",0.67800000000000005,0.13560000000000003,"E0093126","20230221SPN_06","MFB reported fire burning in customer electrical pit, Field Crew attended site to investigate. crew found damaged LV underground cable in pit. The cable damage was caused by a customers fault within the customers pillar.",null,null,"33kV AC"]
[17,98,"2023-02-26T10:44:50","10:44",-37.831281008208599,147.44679798950301,"115 Ives Rd, Lindenow South VIC 3875, Australia",1615275,"BDL44","22kV AC","RURAL LONG"," - fuse (boric acid)","single phase","Otherwise started by a distribution system","within area delineated on plan LEGL./16-354",4.5999999999999996,"Moderate",0.33400000000000002,1.5364,"E0093196","20230227SPN_02","Crew arrived on site and found a candled BA fuse.",null,null,"66kV AC"]
[17,99,"2023-02-27T15:54:25","15:54",-38.267501983019898,146.49450901280701,"70 Arrandoon Dr, Hazelwood North VIC 3840, Australia",2606295,"TGN23","22kV AC","RURAL SHORT"," - fuse (EDO fuse)","single phase","Otherwise started by a distribution system","HBRA only",1,"Moderate",0.33400000000000002,0.33400000000000002,"E0093225","20230228SPN_01","Crew arrived on site and found a candled EDO fuse.",null,null,"132kV AC"]
[17,100,"2023-02-28T21:55:45","21:55",-37.980608999393098,145.30285998344803,"283-295 Heatherton Rd, Narre Warren North VIC 3804, Australia",519591,"LYD14","22kV AC","RURAL SHORT"," - pole (wood)","three phase","Started by any other thing forming part of or coming into contact with a distribution system","HBRA only",1,"Moderate",0.33400000000000002,0.33400000000000002,"E0093270","20230302SPN_01","A private vehicle has hit a pole causing a HVI. This resulted in a small ground fire at the base of the pole and a house fire at the meter panel and switchboard.",null,null,"220kV AC"]
[17,101,"2023-03-02T22:53:01","22:53",-37.654780026218596,145.14897997890401,"137 Murray Rd, Diamond Creek VIC 3089, Australia",926735,"ELM24","22kV AC","RURAL SHORT"," - overhead conductor (bare; steel)","single phase","Started by any tree, or part of a tree, falling upon or coming into contact with a distribution system","within area delineated on plan LEGL./16-354",4.5999999999999996,"Moderate",0.33400000000000002,1.5364,"E0093364","20230303SPN_01","A tree has fallen onto the  22KV open wire conductors causing them to drop to the ground causing a 2 meter square ground fire. Protection operated.",null,null,"330kV AC"]
[17,102,"2023-03-03T14:34:12","14:34",-37.851478131584599,145.69176565121001,"1098 Little Yarra Rd, Three Bridges VIC 3797, Australia",1404777,"WYK23","22kV AC","RURAL SHORT"," - overhead conductor (bare; aluminium core steel reinforced)","three phase","Started by any tree, or part of a tree, falling upon or coming into contact with a distribution system","within area delineated on plan LEGL./16-354",4.5999999999999996,"Moderate",0.33400000000000002,{"$f":"IF(OR(P139=\"\",R139=\"\"),\"\",IF(AND(O139=\"within electric line construction area\",Q139=\"No forecast\"),1,P139*R139))","v":1.5364},"E0093380","20230306SPN_01","A customer had cut down a tree on their property, which fell into the HV and brought down one of the O/H bare conductors at lis 1404777. This caused a 25 meter square grass fire. When the fault crew arrived, the fire was already out. Protection operated.",null,null,"500kV AC"]
[{"$f":"COUNTA(C140:O140,Q140,T140:V140)","v":17},103,"2023-03-04T11:14:05","11:14",-37.669656983313899,145.001257028227,"10 Franklin Rd, Lalor VIC 3075, Australia",909398,"TT9","22kV AC","URBAN"," - overhead conductor (bare; all aluminium conductor)","three phase","Started by any other thing forming part of or coming into contact with a distribution system","LBRA only",{"$f":"IF(O140=\"\",\"\",IF(O140=\"LBRA only\",0.2,IF(O140=\"HBRA only\",1,IF(O140=\"within electric line construction area\",19.8,IF(O140=\"within area delineated on plan LEGL./16-354\",4.6,\"\")))))","v":0.2},"Moderate",0.33400000000000002,6.6800000000000012E-2,"E0093382","20230306SPN_02","The crew attended site and found that balloons have hit HV O/H bare conductors at LIS: 909398. (Crew could not find who did it) causing a small 3 meter square ground fire. Protection operated.\n\n",null,null,"Extra low voltage DC (<120V ripple free)"]
[17,104,"2023-03-05T20:14:55","20:14",-36.468862358730298,146.86554445879199,"110 Tunnel Gap Rd, Mudgegonga VIC 3737, Australia",4505572,"MYT21","12.7kV AC (SWER)","RURAL SHORT"," - fuse (boric acid)","single wire earth return (SWER)","Otherwise started by a distribution system","within electric line construction area",19.8,"High",0.67800000000000005,13.424400000000002,"E0093388","20230306SPN_03","The crew arrived on site and found a candled BA fuse that failed to eject. No ground fire.",null,null,"Low voltage DC (<1.5kV)"]
[17,105,"2023-03-06T02:48:33","02:48",-38.205142020416297,146.15276899714101,"19 C463, Trafalgar VIC 3824, Australia",2204576,"MOE21","22kV AC","RURAL LONG"," - dropper / bridge","three phase","Started in or originated from a distribution system","LBRA only",0.2,"High",0.67800000000000005,0.13560000000000003,"E0093391","20230307SPN_01","Crew arrived on site and found a HV dropper lead had burnt through and caught fire. No ground fire and protection did not operate.",null,null,"600V DC"]
[17,106,"2023-03-08T13:25:42","13:25",-37.653272789485904,145.26356276340999,"110 Turnung Rd, Panton Hill VIC 3759, Australia",926151,"DRN23","Low voltage AC (<1kV)","RURAL LONG"," - connection box","single phase","Started in or originated from a distribution system","HBRA only",1,"Moderate",0.33400000000000002,0.33400000000000002,"E0093452","20230309SPN_01","Crew arrived on site and found a burnt out FOLCB on a timber pole  that caused a 50 meter square ground fire.",null,null,"1500V DC"]
[17,107,"2023-03-14T05:31:38","05:31",-38.408731993482796,145.79286700484099,"120 Kelly and Mosses Ln, Korumburra VIC 3950, Australia",2006472,"LGA12","22kV AC","RURAL SHORT"," - fuse (boric acid)","single phase","Otherwise started by a distribution system","HBRA only",1,"Moderate",0.33400000000000002,0.33400000000000002,"E0093491","20230315SPN_02","Crew arrived on site and found a blown BA fuse and a candled BA fuse.",null,null,"Earthing cable"]
[17,108,"2023-03-14T05:39:41","05:39",-38.1688060094897,147.10444996845001,"198 Longford-Loch Sport Rd, Longford VIC 3851, Australia",2505671,"SLE31","22kV AC","RURAL LONG"," - overhead conductor (bare; aluminium core steel reinforced)","three phase","Started by any tree, or part of a tree, falling upon or coming into contact with a distribution system","within area delineated on plan LEGL./16-354",4.5999999999999996,"Moderate",0.33400000000000002,1.5364,"E0093490","20230315SPN_01","Crew reported a 30 meter square ground fire after a fault. CFA arrived and put the fire out. Bark was found over conductors."]
[17,109,"2023-03-14T15:59:47","15:59",-37.8629137832189,145.296539600995,"11 State Route 36, Boronia VIC 3155, Australia",1224255,"FGY24","22kV AC","URBAN"," - overhead conductor (bare; aluminium core steel reinforced)","three phase","Started by any tree, or part of a tree, falling upon or coming into contact with a distribution system","LBRA only",0.2,"Moderate",0.33400000000000002,6.6800000000000012E-2,"E0093679","20230324SPN_04","As per Reports from MFB Tree Branch caught fire after making contact with HV at LIS: 1224255. No Fire when Fault truck got to site."]
[17,110,"2023-03-14T18:41:07","18:41",-37.882251692805696,145.29504010738302,"100 Station St, Ferntree Gully VIC 3156, Australia",1312723,"FGY14","22kV AC","URBAN"," - switch (disconnector/isolator)","three phase","Started in or originated from a distribution system","LBRA only",0.2,"Moderate",0.33400000000000002,6.6800000000000012E-2,"E0093681","20230407SPN_01","It was reported a MSI had failed and caught fire. There was no ground fire.",null,null,"single wire earth return (SWER)"]
[17,111,"2023-03-16T23:04:31","23:04",-37.756382011612494,145.29935798015802,"88 Black Springs Rd, Chirnside Park VIC 3116, Australia",1031205,"CPK22","22kV AC","RURAL SHORT"," - insulators","three phase","Started by any person, bird, reptile or other animal coming into contact with a distribution system","within area delineated on plan LEGL./16-354",4.5999999999999996,"High",0.67800000000000005,3.1187999999999998,"E0093678","20230324SPN_02","Crew arrived on site and found a possum had shorted across a glass insulating disc causing the disc to fail. The possum was found at the base of the pole with a 2 meter square ground fire. Protection operated.",null,null,"single phase"]
[17,112,"2023-03-17T07:45:16","07:45",-38.022429358926694,145.99342698979902,"45 Cowden Rd, Neerim South VIC 3831, Australia",2700561,"WGL24","12.7kV AC (SWER)","RURAL LONG"," - fuse (boric acid)","single wire earth return (SWER)","Started in or originated from a distribution system","HBRA only",1,"Moderate",0.33400000000000002,0.33400000000000002,"E0093566","20230317SPN_01","Crew arrived on site and found a candled BA fuse. No ground fire.",null,null,"two phase"]
[17,113,"2023-03-17T10:42:03","10:42",-38.165587017032003,147.09982702402701,"Glencoe Trailers/Longford-Loch Sport Rd, Longford VIC 3851, Australia",2502505,"SLE31","22kV AC","RURAL LONG"," - overhead conductor (bare; aluminium core steel reinforced)","three phase","Started by any person, bird, reptile or other animal coming into contact with a distribution system","within area delineated on plan LEGL./16-354",4.5999999999999996,"Moderate",0.33400000000000002,1.5364,"E0093576","20230320SPN_01","Crew arrived on site and found a 75 meter square ground fire. A dead possum was found at the base of the pole.",null,null,"three phase"]
[17,114,"2023-03-17T20:51:19","20:51",-37.744725013277694,145.363900003244,"33 Trafalgar Cres, Lilydale VIC 3140, Australia",1005926,"LDL22","Low voltage AC (<1kV)","URBAN"," - overhead service conductor (residential)","three phase","Started by any tree, or part of a tree, falling upon or coming into contact with a distribution system","LBRA only",0.2,"Moderate",0.33400000000000002,6.6800000000000012E-2,"E0093680","20230324SPN_03","A customers tree has been rubbing on the grey twist service cable causing the insulation to break down and a 10 meter square ground fire."]
[17,115,"2023-03-18T17:17:09","17:17",-38.431475988256402,145.48887202621501,"Bass Valley PS/Corinella Rd, Corinella VIC 3984, Australia",2802895,"LLG13","22kV AC","RURAL SHORT"," - fuse (boric acid)","three phase","Otherwise started by a distribution system","within area delineated on plan LEGL./16-354",4.5999999999999996,"Extreme",2.2719999999999998,10.451199999999998,"E0093584","20230320SPN_02","Crew arrived and found a candled BA fuse, no ground fire."]
[17,116,"2023-03-22T09:13:35","09:13",-38.374755021062903,146.16750499108502,"2632 Strzelecki Hwy, Mirboo North VIC 3871, Australia",2001901,"LGA11","22kV AC","RURAL LONG"," - fuse (boric acid)","single phase","Otherwise started by a distribution system","HBRA only",1,"Moderate",0.33400000000000002,0.33400000000000002,"E0093635","20230323SPN_01","Crew arrived on site and found a candled BA fuse.",null,null,"Negligible: no ground fire"]
[17,117,"2023-03-23T01:07:50","01:07",-37.630925695098895,145.27291346056398,"50 Broad Acres Rd, Panton Hill VIC 3759, Australia",918196,"DRN23","12.7kV AC (SWER)","RURAL LONG"," - fuse (boric acid)","single wire earth return (SWER)","Started in or originated from a distribution system","HBRA only",1,"Moderate",0.33400000000000002,0.33400000000000002,"E0093651","20230323SPN_02","Crew arrived on site and found a candled BA fuse. No ground fire.",null,null,"Localised: less than 10 sq.m"]
[17,118,"2023-03-23T18:00:31","18:00",-36.579780455137403,146.44479546661401,"607 Moyhu-Meadow Creek Rd, Meadow Creek VIC 3678, Australia",5101232,"WN5","12.7kV AC (SWER)","RURAL LONG"," - fuse (EDO fuse)","single wire earth return (SWER)","Otherwise started by a distribution system","within area delineated on plan LEGL./16-354",4.5999999999999996,"Moderate",0.33400000000000002,1.5364,"E0093676","20230324SPN_01","Crew arrived on site and found a candled EDO fuse. The fault was caused by lightening. No ground fire.",null,null,"Small: 10 - 1000 aq.m"]
[17,119,"2023-03-24T09:19:04","09:19",-38.094986001131197,146.540986006346,"30 Wirilda Ct, Glengarry North VIC 3854, Australia",2602076,"TGN31","22kV AC","RURAL LONG"," - fuse (boric acid)","single phase","Otherwise started by a distribution system","HBRA only",1,"Moderate",0.33400000000000002,0.33400000000000002,"E0093690","20230324SPN_06","Crew arrived on site and found a candled BA fuse. No ground fire.",null,null,"Medium: 1000 sq.m - 10 ha"]
[17,120,"2023-03-25T14:32:29","14:32",-38.144238008935204,145.615261017389,"1380 Main Drain Rd S, Cora Lynn VIC 3814, Australia",512571,"PHM33","Low voltage AC (<1kV)","RURAL LONG"," - overhead conductor (bare; copper)","three phase","Started by any other thing forming part of or coming into contact with a distribution system","HBRA only",1,"Moderate",0.33400000000000002,0.33400000000000002,"E0093707","20230327SPN_01","A LV O/H open wire cable fell to the ground causing a 3m x 0.2m groundfire. Protection operated.",null,null,"Large: more than 10 ha"]
[17,121,"2023-03-27T17:15:06","17:15",-38.247667008483603,146.64049100689601,"Hyland Hwy, Flynns Creek VIC 3844, Australia",2621140,"TGN41","22kV AC","RURAL LONG"," - fuse (boric acid)","single phase","Started in or originated from a distribution system","HBRA only",1,"No forecast",0.05,0.05,"E0093740","20230328SPN_01","Crew found a candled BA fuse. No ground fire."]
[17,122,"2023-03-31T16:16:13","16:16",-36.066287982929097,146.38508697714801,"5047 Murray Valley Hwy, Norong VIC 3682, Australia",5207614,"WN3","22kV AC","RURAL LONG"," - overhead conductor (bare; steel)","three phase","Started by any tree, or part of a tree, falling upon or coming into contact with a distribution system","within area delineated on plan LEGL./16-354",4.5999999999999996,"Moderate",0.33400000000000002,1.5364,"E0094033","20230403SPN_01","Crew have arrived to FDR fault and discovered tree through HV, bringing one conductor to the ground. Has gone across all three phases, REFCL network. Small ground fire 100m2. ACR operated"]
[17,123,"2023-04-03T16:56:23","16:56",-38.5238060179393,146.684996024708,"231 Buckleys Island Rd, Yarram VIC 3971, Australia",2611602,"FTR23","22kV AC","RURAL LONG"," - fuse (boric acid)","single phase","Started in or originated from a distribution system","HBRA only",1,"Moderate",0.33400000000000002,0.33400000000000002,"E0094153","20230404SPN_01","Crew arrived on site and found a candled BA fuse and a small 10 meter square ground fire.",null,null,"Started in or originated from a distribution system"]
[17,124,"2023-04-06T16:05:46","16:05",-37.652289982123598,145.23348099613003,"445 Kangaroo Ground-st Andrews Rd, Panton Hill VIC 3759, Australia",920786,"ELM32","22kV AC","RURAL SHORT"," - fuse (boric acid)","single phase","Otherwise started by a distribution system","within area delineated on plan LEGL./16-354",4.5999999999999996,"Moderate",0.33400000000000002,1.5364,"E0094264","20230412SPN_01","Crew arrived on site and found a candled BA fuse. No ground fire.",null,null,"Started by any tree, or part of a tree, falling upon or coming into contact with a distribution system"]
[17,125,"2023-04-08T07:32:21","07:32",-38.487754993015002,145.49094301078301,"210 Bass Rd, Bass VIC 3991, Australia",2803550,"WGI23","22kV AC","RURAL SHORT"," - fuse (boric acid)","single phase","Otherwise started by a distribution system","within area delineated on plan LEGL./16-354",4.5999999999999996,"Moderate",0.33400000000000002,1.5364,"E0094268","20230412SPN_02","Crew arrived on site and found a candled BA fuse. No ground fire.",null,null,"Started by any person, bird, reptile or other animal coming into contact with a distribution system"]
[17,126,"2023-04-08T11:29:33","11:29",-36.712399623116198,146.47010078209001,"209 Black Range Creek Rd, Edi Upper VIC 3678, Australia",5101888,"WN5","12.7kV AC (SWER)","RURAL LONG"," - fuse (boric acid)","single wire earth return (SWER)","Otherwise started by a distribution system","within area delineated on plan LEGL./16-354",4.5999999999999996,"Moderate",0.33400000000000002,1.5364,"E0094269","20230412SPN_03","Crew arrived on site and found a candled BA fuse. No ground fire.",null,null,"Started by lightning striking a distribution system or a part of a distribution system "]
[17,127,"2023-04-20T06:02:53","06:02",-38.675548400776201,145.86603859433902,"20 Arbuthnotts Rd, Tarwin Lower VIC 3956, Australia",5822577,"WGI24","22kV AC","RURAL SHORT"," - fuse (boric acid)","three phase","Otherwise started by a distribution system","within area delineated on plan LEGL./16-354",4.5999999999999996,"No forecast",0.05,0.22999999999999998,"E0094408","20230421SPN_02","The crew arrived and found a candled BA fuse.",null,null,"Started by any other thing forming part of or coming into contact with a distribution system"]
[17,128,"2023-04-24T17:27:09","17:27",-36.323380027414103,146.84075397572701,"54 Back Creek Rd, Yackandandah VIC 3749, Australia",5201751,"WOTS11","22kV AC","RURAL LONG"," - fuse (boric acid)","three phase","Otherwise started by a distribution system","within electric line construction area",19.8,"No forecast",0.05,1,"E0094434","20230426SPN_01","Crew found a candled BA fuse.",null,null,"Otherwise started by a distribution system"]
[17,129,"2023-04-27T06:56:44","06:56",-37.233524003527997,145.05070697587701,"365 Sunday Creek Rd, Sunday Creek VIC 3658, Australia",4700803,"SMR22","22kV AC","RURAL LONG"," - fuse (EDO fuse)","single phase","Otherwise started by a distribution system","within area delineated on plan LEGL./16-354",4.5999999999999996,"Moderate",0.33400000000000002,1.5364,"E0094467","20230427SPN_01","Crew found a candled EDO fuse."]
[17,130,"2023-04-28T04:40:53","04:40",-37.724366987564196,145.221010000207,"4 Caloola Dr, North Warrandyte VIC 3113, Australia",1206815,"ELM32","22kV AC","RURAL SHORT"," - fuse (boric acid)","three phase","Otherwise started by a distribution system","within electric line construction area",19.8,"Moderate",{"$f":"IF(Q167=\"\",\"\",IF(C167>=DATE(2022,9,1),IF(Q167=\"No forecast\",0.05,IF(Q167=\"Moderate\",0.334,IF(Q167=\"High\",0.678,IF(Q167=\"Extreme\",2.272,4.754)))),0.05))","v":0.33400000000000002},6.6132000000000009,"E0094479","20230428SPN_02","Crew found a candled BA fuse and a dead possum at the base of the pole."]
[17,131,"2023-04-28T06:17:40","06:17",-37.655366534965303,145.34232748114201,"2 Muir Rd, Christmas Hills VIC 3775, Australia",1016022,"CPK12","12.7kV AC (SWER)","RURAL SHORT"," - fuse (boric acid)","single wire earth return (SWER)","Otherwise started by a distribution system","within area delineated on plan LEGL./16-354",4.5999999999999996,"Moderate",0.33400000000000002,1.5364,"E0094482","20230501SPN_03","Crew found a candled BA fuse. No ground fire.",null,null,1]
[17,132,"2023-04-29T16:03:42","16:03",-38.542023024376803,145.85711899635101,"7735 Bass Hwy, Leongatha South VIC 3953, Australia",2010617,"LGA23","22kV AC","RURAL LONG"," - fuse (boric acid)","three phase","Otherwise started by a distribution system","HBRA only",1,"No forecast",0.05,0.05,"E0094500","20230501SPN_01","Crew found a candled BA fuse.",null,null,2]
[17,133,"2023-05-02T18:15:59","18:15",-38.218615978899898,145.61201996649899,"S Yannathan Rd, Yannathan VIC 3981, Australia",513367,"LLG11","22kV AC","RURAL SHORT"," - overhead conductor (bare; steel)","single phase","Started in or originated from a distribution system","within area delineated on plan LEGL./16-354",4.5999999999999996,"Moderate",0.33400000000000002,1.5364,"E0094564","20230503SPN_01","A 22KV 3/12 Steel Conductor has dropped to the ground at LIS: 513367 (1 phase) causing a small 2 meter ground fire at same LIS that was put out by the CFA. BA fuse operated.",null,null,3]
[17,134,"2023-05-02T18:57:00","18:57",-37.8307499976003,147.611309021756,"415 A1, Bairnsdale VIC 3875, Australia",1605227,"BDL43","Low voltage AC (<1kV)","URBAN"," - lamps (major road)","single phase","Started in or originated from a distribution system","LBRA only",0.2,"No forecast",0.05,{"$f":"IF(OR(P171=\"\",R171=\"\"),\"\",IF(AND(O171=\"within electric line construction area\",Q171=\"No forecast\"),1,P171*R171))","v":1.0000000000000002E-2},"E0094566","20230503SPN_02","A street light has failed and caught fire.",null,null,4]
[17,135,"2023-05-05T07:39:00","07:39",-37.246582384033495,145.46536582591102,"263 Frog Ponds Rd, Yea VIC 3717, Australia",4711464,"SMR14","12.7kV AC (SWER)","RURAL LONG"," - fuse (EDO fuse)","single wire earth return (SWER)","Started by any person, bird, reptile or other animal coming into contact with a distribution system","within area delineated on plan LEGL./16-354",4.5999999999999996,"No forecast",0.05,0.22999999999999998,"E0094609","20230505SPN_01","Crew found a candled fuse. The fault was caused by a wasp nest.",null,null,5]
[17,136,"2023-05-10T12:18:26","12:18",-36.5361640103702,146.0192239932,"Benalla-Winton Discovery Trl, Benalla VIC 3672, Australia",3909631,"BN24","22kV AC","RURAL LONG"," - overhead conductor (bare; steel)","three phase","Started by any other thing forming part of or coming into contact with a distribution system","within area delineated on plan LEGL./16-354",4.5999999999999996,"No forecast",0.05,0.22999999999999998,"E0095091","20230511SPN_01","Crew arrived on site and found a 22KV bare conductor on the ground causing a 5 meter square ground fire. Feeder CB tripped.",null,null,6]
[17,137,"2023-05-17T06:24:00","06:24",-38.119472020176701,145.71157998243601,"1455 Bunyip River Rd, Bunyip VIC 3815, Australia",595908,"WGL12","Low voltage AC (<1kV)","RURAL LONG"," - connection box","three phase","Started in or originated from a distribution system","HBRA only",1,"No forecast",0.05,0.05,"E0095157","20230517SPN_01","Crew arrived on site after a report that the krone box on the pole had caught fire. No ground fire.",null,null,7]
[17,138,"2023-05-18T09:01:25","09:01",-36.633715996296495,145.722624022612,"61-63 Hurt St, Violet Town VIC 3669, Australia",3903942,"BN11","Low voltage AC (<1kV)","RURAL LONG"," - connection box","three phase","Started in or originated from a distribution system","LBRA only",0.2,"No forecast",0.05,1.0000000000000002E-2,"E0095179","20230519SPN_02","A FLOCB on the pole has overheated and caught fire.",null,null,8]
[17,139,"2023-05-25T07:53:09","07:53",-36.895186014293998,145.98300897092801,"83 Hewsons Road, Barjarg VIC 3723, Australia",3918946,"BN23","22kV AC","RURAL LONG"," - fuse (EDO fuse)","single phase","Otherwise started by a distribution system","within area delineated on plan LEGL./16-354",4.5999999999999996,"No forecast",0.05,0.22999999999999998,"E0095253","20230525SPN_01","Crew arrived and found a candled EDO fuse.",null,null,9]
[17,140,"2023-05-26T13:53:56","13:53",-38.0965449996282,145.69569902015402,"10 Hillbrick Rd, Garfield VIC 3814, Australia",511516,"WGL12","22kV AC","RURAL LONG"," - fuse (boric acid)","three phase","Otherwise started by a distribution system","HBRA only",1,"No forecast",0.05,0.05,"E0095287","20230529SPN_01","Crew arrived on site and found 1 Blown and 1 Candled BA fuse.",null,null,10]
[17,141,"2023-05-26T21:11:01","21:11",-37.783458996120295,145.38204202615199,"19-23 Hereford Rd, Mount Evelyn VIC 3796, Australia",1009319,"LDL13","22kV AC","RURAL SHORT"," - dropper / bridge","three phase","Started in or originated from a distribution system","LBRA only",0.2,"No forecast",0.05,1.0000000000000002E-2,"E0095290","20230529SPN_02","Leads to a 22KV gas switch were loose and caused small flames on 1 of the leads.",null,null,{"$f":"Y177+1","v":11}]
[17,142,"2023-05-27T09:58:21","09:58",-37.406396856227701,145.37841852481799,"450 Break Oday Rd, Glenburn VIC 3717, Australia",1401208,"KLK11","12.7kV AC (SWER)","RURAL SHORT"," - fuse (boric acid)","single wire earth return (SWER)","Started in or originated from a distribution system","within electric line construction area",19.8,"No forecast",0.05,1,"E0095292","20230529SPN_03","ACR on SWER line tripped 5 times and when the crew arrived they found a candled fuse.",null,null,{"$f":"Y178+1","v":12}]
[17,143,"2023-05-31T08:19:51","08:19",-37.074706007332296,146.29129984756099,"729 Buttercup Rd, Merrijig VIC 3723, Australia",3920605,"MSD1","12.7kV AC (SWER)","RURAL LONG"," - fuse (boric acid)","single wire earth return (SWER)","Otherwise started by a distribution system","HBRA only",1,"No forecast",0.05,0.05,"E0095355","20230531SPN_01","Crew arrived and found a candled BA fuse. No ground fire.",null,null,13]
[17,144,"2023-06-01T07:35:49","07:35",-38.6520440114951,146.30527900851402,"4760 A440, Toora VIC 3962, Australia",2022549,"FTR12","22kV AC","RURAL LONG"," - fuse (boric acid)","three phase","Started by any tree, or part of a tree, falling upon or coming into contact with a distribution system","HBRA only",1,"No forecast",0.05,0.05,"E0095384","20230601SPN_02","Crew arrived on site and found a candled BA fuse. No ground fire. The initial cause of the fault was blown bark in the next bay across the lines",null,null,14]
[17,145,"2023-06-05T06:16:42","06:16",-36.722227012690098,146.32429697237302,"1608 Boggy Creek Rd, Myrrhee VIC 3732, Australia",5101488,"WN5","22kV AC","RURAL LONG"," - fuse (EDO fuse)","single phase","Otherwise started by a distribution system","within area delineated on plan LEGL./16-354",4.5999999999999996,"No forecast",0.05,0.22999999999999998,"E0095422","20230605SPN_01","Crew arrived on site and found a candled EDO fuse.",null,null,15]
[17,146,"2023-06-09T05:17:10","05:17",-37.943345985816002,145.55518202749701,"5 Collie Rd, Gembrook VIC 3783, Australia",417050,"OFR23","22kV AC","RURAL LONG"," - fuse (boric acid)","three phase","Otherwise started by a distribution system","HBRA only",1,"No forecast",0.05,0.05,"E0095496","20230609SPN_01","Crew arrived and found 1 blown BA fuse and 1 Candled BA fuse.\nNo ground fire.",null,null,16]
[17,147,"2023-06-12T17:48:05","17:48",-38.393989024413194,146.15266499558601,"40 Balook St, Mirboo North VIC 3871, Australia",2021997,"LGA11","22kV AC","RURAL LONG"," - fuse (boric acid)","three phase","Otherwise started by a distribution system","HBRA only",1,"No forecast",0.05,0.05,"E0095512","20230613SPN_01","Crew arrived on site and found a candled BA fuse. No ground fire.",null,null,17]
[17,148,"2023-06-15T00:27:04","00:27",-37.628163987505005,145.229830998024,"195 Church Rd, Panton Hill VIC 3759, Australia",920008,"DRN23","22kV AC","RURAL LONG"," - fuse (boric acid)","single phase","Otherwise started by a distribution system","HBRA only",1,"No forecast",0.05,0.05,"E0095558","20230615SPN_01","The crew arrived on site and found a candled BA fuse. Suspected fatigue and moisture caused the fuse to candle.",null,null,18]
[17,149,"2023-06-15T14:05:40","14:05",-38.303420995032099,146.53838700508902,"35 Traralgon-Balook Rd, Traralgon South VIC 3844, Australia",2603589,"TGN23","22kV AC","RURAL SHORT"," - fuse (boric acid)","three phase","Otherwise started by a distribution system","HBRA only",1,"No forecast",0.05,0.05,"E0095564","20230616SPN_01","Crew arrived and found a candled BA fuse. No ground fire.",null,null,19]
[null,null,null,null,null,null,null,null,null,null,null,null,null,null,null,null,null,null,null,null,null,null,null,null,20]

{"sheet":"3. Systems and Audit","index":4,"n_rows":29,"n_cols":5,"rows_kept":29,"cut":false,"hidden":false,"merged":[[28,1,29,4],[3,5,3,6],[4,5,4,6],[5,5,5,6],[6,1,6,4],[9,1,9,4],[14,1,14,4],[10,1,10,4],[13,1,13,4],[12,1,12,4],[11,1,11,4],[19,4,21,4]]}
[null,{"$f":"IF(Cover!D27=\"\",\"[DNSP Name]\", Cover!D27)","v":"AusNet Services"}]
[null,"F-factor data reporting"]
[null,{"$f":"IF(Cover!D33=\"\",\"[Year]\",Cover!D33)","v":"2022/23"}]
[]
[]
[null,"Instructions:"]
[]
[null,{"$f":"IF(Cover!D27=\"\",\"[DNSP Name] must provide:\", CONCATENATE(Cover!D27,\" must provide:\"))","v":"AusNet Services must provide:"}]
[]
[null,"Table 4 - Information or reporting systems"]
[null,"   (1) Name of any IT system used to collect fire start data or fault event data - i.e. SCADA system, or fault reporting system"]
[null,"   (2) Whether the fire recording or fault recording process has been audited or complies with a relevant Australian or industry standard - Yes or No"]
[null,"   (3) List any relevant Australian or industry standards that the fire recording or fault recording process complies with"]
[null,"   (4) Whether the data entered into or removed from the IT system has been audited - Yes or No"]
[]
[]
[null,"Table 4: Information or reporting systems"]
[]
[null,"Information or reporting systems","Name","System Audited","Relevant Standards"]
[null,"System 1","Poweron (OMS)","Yes","ISO 9001\nISO55000\nElectricity Safey (Bushfire Mitigation) Regulations\nElectricity Safety (Management) Regulations"]
[null,"System 2","ENABLON","Yes"]
[null,"System 3 ","Smallworld GIS (SDME) /SAP","Yes"]
[null,"System 4","EM-COP","Unknown","https://files-em.em.vic.gov.au/FDRhistory/FDRhistory.htm"]
[null,"System 5"]
[null,"System 6"]
[null,"System 7"]
[null,"System 8"]
[]
[null,"The SGSPAA Internal Audit function undertakes a programme of work in accordance with the SGSPAA Group Internal Audit Plan. This internal audit activity covers elements of the systems and process used for capturing, recording and maintaining fire start data."]